Department family,Entity,Date,Expense type,Expense area,Supplier,Transaction number ,Amount
Home Office,CRB - Criminal Records Bureau,04/10/2010,Legal Fees,CRB - Criminal Records Bureau,Treasury Solicitor's Cash A/C,14912    3,"28,338.13"
Home Office,CRB - Criminal Records Bureau,08/10/2010,Police costs per check,CRB - Criminal Records Bureau,Cambridgeshire Police Auth,14950    2,"60,163.57"
Home Office,CRB - Criminal Records Bureau,08/10/2010,Police costs per check,CRB - Criminal Records Bureau,Cheshire Police Authority,14950    5,"64,710.66"
Home Office,CRB - Criminal Records Bureau,08/10/2010,Police costs per check,CRB - Criminal Records Bureau,Cleveland Police Authority,14950    7,"28,218.04"
Home Office,CRB - Criminal Records Bureau,08/10/2010,Police costs per check,CRB - Criminal Records Bureau,Devon & Cornwall Police Author,14950    8,"38,928.43"
Home Office,CRB - Criminal Records Bureau,08/10/2010,Police costs per check,CRB - Criminal Records Bureau,Gloucestershire Police Authori,14950    10,"42,453.70"
Home Office,CRB - Criminal Records Bureau,08/10/2010,Police costs per check,CRB - Criminal Records Bureau,Lancashire Police Authority,14950    12,"54,622.86"
Home Office,CRB - Criminal Records Bureau,08/10/2010,Police costs per check,CRB - Criminal Records Bureau,Disclosure Scotland,14950    17,"32,487.55"
Home Office,CRB - Criminal Records Bureau,08/10/2010,Police costs per check,CRB - Criminal Records Bureau,Avon & Somerset Police,14950    19,"193,594.72"
Home Office,CRB - Criminal Records Bureau,08/10/2010,Police costs per check,CRB - Criminal Records Bureau,Staffordshire Police Authority,14950    20,"78,641.41"
Home Office,CRB - Criminal Records Bureau,08/10/2010,Police costs per check,CRB - Criminal Records Bureau,West Mercia Police Fund,14950    24,"79,143.36"
Home Office,CRB - Criminal Records Bureau,08/10/2010,PPP costs,CRB - Criminal Records Bureau,Capita Business Services Ltd,14956    12,"302,472.65"
Home Office,CRB - Criminal Records Bureau,15/10/2010,Police costs per check,CRB - Criminal Records Bureau,Durham Police Authority,14975    12,"30,707.84"
Home Office,CRB - Criminal Records Bureau,15/10/2010,Police costs per check,CRB - Criminal Records Bureau,Dyfed-Powys Police Fund - Main,14975    13,"30,133.64"
Home Office,CRB - Criminal Records Bureau,15/10/2010,Police costs per check,CRB - Criminal Records Bureau,Gwent Police Authority,14975    18,"28,990.47"
Home Office,CRB - Criminal Records Bureau,15/10/2010,Police costs per check,CRB - Criminal Records Bureau,Hampshire Police Authority,14975    19,"72,365.02"
Home Office,CRB - Criminal Records Bureau,15/10/2010,Police costs per check,CRB - Criminal Records Bureau,Hertfordshire Police Authority,14975    21,"56,447.11"
Home Office,CRB - Criminal Records Bureau,15/10/2010,Police costs per check,CRB - Criminal Records Bureau,Humberside Police Authority,14975    22,"79,558.69"
Home Office,CRB - Criminal Records Bureau,15/10/2010,Police costs per check,CRB - Criminal Records Bureau,Merseyside Police Authority,14975    29,"71,502.23"
Home Office,CRB - Criminal Records Bureau,15/10/2010,Police costs per check,CRB - Criminal Records Bureau,Northants Police Authority,14975    32,"75,747.46"
Home Office,CRB - Criminal Records Bureau,15/10/2010,Police costs per check,CRB - Criminal Records Bureau,Norfolk Police Authority,14975    33,"40,341.80"
Home Office,CRB - Criminal Records Bureau,15/10/2010,Police costs per check,CRB - Criminal Records Bureau,Nottinghamshire Police Authori,14975    35,"44,878.99"
Home Office,CRB - Criminal Records Bureau,15/10/2010,Police costs per check,CRB - Criminal Records Bureau,North Wales Police Funding Acc,14975    36,"45,108.06"
Home Office,CRB - Criminal Records Bureau,15/10/2010,Police costs per check,CRB - Criminal Records Bureau,North Yorkshire Police Authori,14975    37,"55,597.87"
Home Office,CRB - Criminal Records Bureau,15/10/2010,Police costs per check,CRB - Criminal Records Bureau,South Wales Police,14975    40,"28,912.46"
Home Office,CRB - Criminal Records Bureau,15/10/2010,Police costs per check,CRB - Criminal Records Bureau,Sussex Police,14975    44,"40,156.61"
Home Office,CRB - Criminal Records Bureau,15/10/2010,Police costs per check,CRB - Criminal Records Bureau,West Midlands Police,14975    47,"127,484.23"
Home Office,CRB - Criminal Records Bureau,15/10/2010,Police costs per check,CRB - Criminal Records Bureau,West Yorkshire Police,14975    48,"84,375.46"
Home Office,CRB - Criminal Records Bureau,15/10/2010,Police costs per check,CRB - Criminal Records Bureau,Wiltshire Police Authority Inc,14975    49,"25,734.37"
Home Office,CRB - Criminal Records Bureau,25/10/2010,Police costs per check,CRB - Criminal Records Bureau,The Metropolitan Police,15018    4,"672,716.38"
Home Office,CRB - Criminal Records Bureau,25/10/2010,Adelphi ongoing cost,CRB - Criminal Records Bureau,The Home Office,15018    2,"78,500.00"
Home Office,CRB - Criminal Records Bureau,26/10/2010,Police costs per check,CRB - Criminal Records Bureau,Bedfordshire Police,15029    1,"30,622.42"
Home Office,CRB - Criminal Records Bureau,26/10/2010,Police costs per check,CRB - Criminal Records Bureau,British Transport Police,15029    2,"49,204.90"
Home Office,CRB - Criminal Records Bureau,26/10/2010,Police costs per check,CRB - Criminal Records Bureau,Cheshire Police Authority,15029    4,"63,159.32"
Home Office,CRB - Criminal Records Bureau,26/10/2010,Police costs per check,CRB - Criminal Records Bureau,Cleveland Police Authority,15029    5,"27,686.61"
Home Office,CRB - Criminal Records Bureau,26/10/2010,Police costs per check,CRB - Criminal Records Bureau,Cumbria Police Authority Main,15029    6,"29,077.19"
Home Office,CRB - Criminal Records Bureau,26/10/2010,Police costs per check,CRB - Criminal Records Bureau,Derbyshire Police Authority,15029    7,"72,729.49"
Home Office,CRB - Criminal Records Bureau,26/10/2010,Police costs per check,CRB - Criminal Records Bureau,Essex Police Authority Revenue,15029    8,"208,854.06"
Home Office,CRB - Criminal Records Bureau,26/10/2010,Police costs per check,CRB - Criminal Records Bureau,Humberside Police Authority,15029    9,"79,924.81"
Home Office,CRB - Criminal Records Bureau,26/10/2010,Police costs per check,CRB - Criminal Records Bureau,KENT CONSTABULARY,15029    10,"74,329.28"
Home Office,CRB - Criminal Records Bureau,26/10/2010,Police costs per check,CRB - Criminal Records Bureau,Lancashire Police Authority,15029    11,"56,423.98"
Home Office,CRB - Criminal Records Bureau,26/10/2010,Police costs per check,CRB - Criminal Records Bureau,Leicestershire Police Authorit,15029    12,"55,856.87"
Home Office,CRB - Criminal Records Bureau,26/10/2010,Police costs per check,CRB - Criminal Records Bureau,Northumbria Police,15029    13,"45,646.95"
Home Office,CRB - Criminal Records Bureau,26/10/2010,Police costs per check,CRB - Criminal Records Bureau,Police Service of N. I.,15029    14,"33,155.54"
Home Office,CRB - Criminal Records Bureau,26/10/2010,Police costs per check,CRB - Criminal Records Bureau,South Wales Police,15029    16,"32,933.39"
Home Office,CRB - Criminal Records Bureau,26/10/2010,Police costs per check,CRB - Criminal Records Bureau,South Yorkshire Police,15029    17,"41,094.97"
Home Office,CRB - Criminal Records Bureau,26/10/2010,Police costs per check,CRB - Criminal Records Bureau,Suffolk Police Authority,15029    18,"31,840.90"
Home Office,CRB - Criminal Records Bureau,26/10/2010,Police costs per check,CRB - Criminal Records Bureau,Surrey Police Authority,15029    19,"108,115.23"
Home Office,CRB - Criminal Records Bureau,26/10/2010,Police costs per check,CRB - Criminal Records Bureau,West Midlands Police,15029    21,"147,426.85"
Home Office,CRB - Criminal Records Bureau,26/10/2010,Police costs per check,CRB - Criminal Records Bureau,West Yorkshire Police,15029    22,"80,069.82"
Home Office,CRB - Criminal Records Bureau,02/11/2010,PPP costs,CRB - Criminal Records Bureau,Capita Business Services Ltd,15067    48,"1,039,993.70"
Home Office,Home Office,04/10/2010,IT & Telecommunications Equip.Hardware adapters,Communications,DIAGONAL SOLUTIONS LTD,1819079,"239,700.00"
Home Office,Home Office,20/10/2010,IT & Telecommunications Equip.Hardware adapters,Communications,SPECIALIST COMPUTER CENTRES PLC,1823686,"32,108.13"
Home Office,Home Office,04/10/2010,Storage & Mail Services.Messenger & Reception Services,CPG - Crime & Policing Group,CONCATENO UK LIMITED,1792627,"231,002.65"
Home Office,Home Office,04/10/2010,Storage & Mail Services.Messenger & Reception Services,CPG - Crime & Policing Group,CONCATENO UK LIMITED,1819237,"157,732.00"
Home Office,Home Office,04/10/2010,Management & Admin Serv.Temporary Manager Staff - PROG,CPG - Crime & Policing Group,CRIMINAL RECORDS BUREAU,1808830,"42,946.25"
Home Office,Home Office,04/10/2010,"IT, Broadcasting & Telecomms.IT Run Costs other -Prog",CPG - Crime & Policing Group,ALTIUS CONSULTING LTD,1819245,"32,072.98"
Home Office,Home Office,04/10/2010,Grant,CPG - Crime & Policing Group,COMMUNITIES & LOCAL GOVERNMENT (G),325574-8,"5,095,577.58"
Home Office,Home Office,04/10/2010,Grant,CPG - Crime & Policing Group,SOCA (G),516926,"28,000,000.00"
Home Office,Home Office,04/10/2010,Grant,CPG - Crime & Policing Group,COMMUNITIES & LOCAL GOVERNMENT (G),325574-30,"1,282,696.92"
Home Office,Home Office,04/10/2010,Grant,CPG - Crime & Policing Group,COMMUNITIES & LOCAL GOVERNMENT (G),325574-19,"58,666.67"
Home Office,Home Office,04/10/2010,Grant,CPG - Crime & Policing Group,WEST YORKSHIRE POLICE (G),473868,"28,773.00"
Home Office,Home Office,04/10/2010,Grant,CPG - Crime & Policing Group,CUMBRIA POLICE AUTHORITY 1 (G),473868,"46,804.71"
Home Office,Home Office,04/10/2010,Grant,CPG - Crime & Policing Group,MERSEYSIDE POLICE AUTHORITY 1 (G),473868,"47,169.00"
Home Office,Home Office,04/10/2010,Grant,CPG - Crime & Policing Group,SOUTH YORKSHIRE POLICE AUTHORITY 1,473868,"81,713.00"
Home Office,Home Office,04/10/2010,Grant,CPG - Crime & Policing Group,GREATER LONDON AUTHORITY (G),473868,"210,717.00"
Home Office,Home Office,04/10/2010,Grant,CPG - Crime & Policing Group,WEST MIDLANDS POLICE AUTHORITY 1 (,473868,"231,541.00"
Home Office,Home Office,04/10/2010,Grant,CPG - Crime & Policing Group,GREATER MANCHESTER POLICE AUTHORIT,473868,"292,840.00"
Home Office,Home Office,04/10/2010,Grant,CPG - Crime & Policing Group,CHAMBERLAIN OF LONDON (G),453594,"1,807,384.00"
Home Office,Home Office,04/10/2010,Grant,CPG - Crime & Policing Group,CUMBRIA POLICE AUTHORITY 1 (G),453594,"2,784,812.00"
Home Office,Home Office,04/10/2010,Grant,CPG - Crime & Policing Group,WARWICKSHIRE POLICE AUTHORITY 1 (G,453594,"2,817,766.00"
Home Office,Home Office,04/10/2010,Grant,CPG - Crime & Policing Group,DYFED POWYS POLICE AUTHORITY 1 (G),453594,"2,820,914.00"
Home Office,Home Office,04/10/2010,Grant,CPG - Crime & Policing Group,GLOUCESTERSHIRE POLICE AUTHORITY (,453594,"3,026,196.00"
Home Office,Home Office,04/10/2010,Grant,CPG - Crime & Policing Group,WILTSHIRE CONSTABULARY (G),453594,"3,371,577.00"
Home Office,Home Office,04/10/2010,Grant,CPG - Crime & Policing Group,DORSET POLICE AUTHORITY 1 (G),453594,"3,492,024.00"
Home Office,Home Office,04/10/2010,Grant,CPG - Crime & Policing Group,LINCOLNSHIRE POLICE AUTHORITY 1 (G,453594,"3,535,554.00"
Home Office,Home Office,04/10/2010,Grant,CPG - Crime & Policing Group,BEDFORDSHIRE POLICE AUTHORITY 1 (G,453594,"3,571,296.00"
Home Office,Home Office,04/10/2010,Grant,CPG - Crime & Policing Group,SUFFOLK POLICE AUTHORITY (G),453594,"3,646,757.00"
Home Office,Home Office,04/10/2010,Grant,CPG - Crime & Policing Group,NORTHAMPTONSHIRE POLICE 1 (G),453594,"3,765,162.00"
Home Office,Home Office,04/10/2010,Grant,CPG - Crime & Policing Group,DURHAM POLICE AUTHORITY 1 (G),453594,"3,796,422.00"
Home Office,Home Office,04/10/2010,Grant,CPG - Crime & Policing Group,NORTH WALES POLICE AUTHORITY (G),453594,"3,880,835.00"
Home Office,Home Office,04/10/2010,Grant,CPG - Crime & Policing Group,GWENT POLICE AUTHORITY 1 (G),453594,"3,885,765.00"
Home Office,Home Office,04/10/2010,Grant,CPG - Crime & Policing Group,NORTH YORKSHIRE POLICE AUTHORITY (,453594,"3,936,672.00"
Home Office,Home Office,04/10/2010,Grant,CPG - Crime & Policing Group,CLEVELAND POLICE AUTHORITY 1 (G),453594,"4,107,078.00"
Home Office,Home Office,04/10/2010,Grant,CPG - Crime & Policing Group,CAMBRIDGESHIRE POLICE AUTHORITY 1,453594,"4,240,189.00"
Home Office,Home Office,04/10/2010,Grant,CPG - Crime & Policing Group,NORFOLK POLICE AUTHORITY 1 (G),453594,"4,453,785.00"
Home Office,Home Office,04/10/2010,Grant,CPG - Crime & Policing Group,DERBYSHIRE POLICE AUTHORITY 1 (G),453594,"5,573,861.00"
Home Office,Home Office,04/10/2010,Grant,CPG - Crime & Policing Group,CHESHIRE POLICE AUTHORITY 2 (G),453594,"5,581,556.00"
Home Office,Home Office,04/10/2010,Grant,CPG - Crime & Policing Group,LEICESTERSHIRE POLICE AUTHORITY (G,453594,"5,636,757.00"
Home Office,Home Office,04/10/2010,Grant,CPG - Crime & Policing Group,SURREY POLICE AUTHORITY 1 (G),453594,"5,754,318.00"
Home Office,Home Office,04/10/2010,Grant,CPG - Crime & Policing Group,HUMBERSIDE POLICE AUTHORITY 1 (G),453594,"5,800,959.00"
Home Office,Home Office,04/10/2010,Grant,CPG - Crime & Policing Group,STAFFORDSHIRE POLICE AUTHORITY (G),453594,"5,855,265.00"
Home Office,Home Office,04/10/2010,Grant,CPG - Crime & Policing Group,NEW WEST MERCIA POLICE AUTHORITY (,453594,"5,975,708.00"
Home Office,Home Office,04/10/2010,Grant,CPG - Crime & Policing Group,HERTFORDSHIRE POLICE AUTHORITY 1 (,453594,"6,525,387.00"
Home Office,Home Office,04/10/2010,Grant,CPG - Crime & Policing Group,NOTTINGHAMSHIRE POLICE AUTHORITY 2,453594,"6,605,626.00"
Home Office,Home Office,04/10/2010,Grant,CPG - Crime & Policing Group,SOUTH WALES POLICE AUTHORITY 1 (G),453594,"8,425,424.00"
Home Office,Home Office,04/10/2010,Grant,CPG - Crime & Policing Group,SUSSEX POLICE AUTHORITY 1 (G),453594,"8,620,882.00"
Home Office,Home Office,04/10/2010,Grant,CPG - Crime & Policing Group,SOUTH YORKSHIRE POLICE AUTHORITY 1,453594,"8,777,081.00"
Home Office,Home Office,04/10/2010,Grant,CPG - Crime & Policing Group,NORTHUMBRIA POLICE (G),453594,"9,285,752.00"
Home Office,Home Office,04/10/2010,Grant,CPG - Crime & Policing Group,AVON & SOMERSET POLICE AUTHORITY 1,453594,"9,309,651.00"
Home Office,Home Office,04/10/2010,Grant,CPG - Crime & Policing Group,LANCASHIRE POLICE AUTHORITY 1 (G),453594,"9,324,083.00"
Home Office,Home Office,04/10/2010,Grant,CPG - Crime & Policing Group,DEVON & CORNWALL POLICE AUTHORITY,453594,"9,371,973.00"
Home Office,Home Office,04/10/2010,Grant,CPG - Crime & Policing Group,ESSEX POLICE AUTHORITY (G),453594,"9,426,856.00"
Home Office,Home Office,04/10/2010,Grant,CPG - Crime & Policing Group,KENT POLICE AUTHORITY 1 (G),453594,"9,891,864.00"
Home Office,Home Office,04/10/2010,Grant,CPG - Crime & Policing Group,HAMPSHIRE POLICE AUTHORITY 1 (G),453594,"10,472,722.00"
Home Office,Home Office,04/10/2010,Grant,CPG - Crime & Policing Group,MERSEYSIDE POLICE AUTHORITY 1 (G),453594,"11,310,724.00"
Home Office,Home Office,04/10/2010,Grant,CPG - Crime & Policing Group,THAMES VALLEY POLICE (G),453594,"12,593,917.00"
Home Office,Home Office,04/10/2010,Grant,CPG - Crime & Policing Group,WEST YORKSHIRE POLICE (G),453594,"15,482,796.00"
Home Office,Home Office,04/10/2010,Grant,CPG - Crime & Policing Group,GREATER MANCHESTER POLICE AUTHORIT,453594,"20,179,915.00"
Home Office,Home Office,04/10/2010,Grant,CPG - Crime & Policing Group,WEST MIDLANDS POLICE AUTHORITY 1 (,453594,"22,127,422.00"
Home Office,Home Office,04/10/2010,Grant,CPG - Crime & Policing Group,GREATER LONDON AUTHORITY (G),453594,"93,454,725.00"
Home Office,Home Office,05/10/2010,Grant,CPG - Crime & Policing Group,INDEPENDENT CUSTODY VISITING ASSN,539730,"52,273.00"
Home Office,Home Office,05/10/2010,Grant,CPG - Crime & Policing Group,NATIONAL APPROPRIATE ADULT NETWORK,539726,"27,750.00"
Home Office,Home Office,05/10/2010,Grant,CPG - Crime & Policing Group,DEPARTMENT OF HEALTH (G),540496,"574,480.00"
Home Office,Home Office,05/10/2010,Grant,CPG - Crime & Policing Group,KENT POLICE AUTHORITY 1 (G),540570,"26,423.40"
Home Office,Home Office,05/10/2010,Grant,CPG - Crime & Policing Group,DESIGN COUNCIL (G),434068-6,"41,666.00"
Home Office,Home Office,06/10/2010,Grant,CPG - Crime & Policing Group,WEST MIDLANDS POLICE AUTHORITY 1 (,537014,"98,736.00"
Home Office,Home Office,06/10/2010,Grant,CPG - Crime & Policing Group,MERSEYSIDE POLICE AUTHORITY 1 (G),537014,"157,695.00"
Home Office,Home Office,06/10/2010,Grant,CPG - Crime & Policing Group,LEICESTERSHIRE POLICE AUTHORITY (G,537014,"157,812.00"
Home Office,Home Office,06/10/2010,Grant,CPG - Crime & Policing Group,GLOUCESTERSHIRE POLICE AUTHORITY (,537014,"180,952.00"
Home Office,Home Office,06/10/2010,Grant,CPG - Crime & Policing Group,HERTFORDSHIRE POLICE AUTHORITY 1 (,537014,"184,923.00"
Home Office,Home Office,06/10/2010,Grant,CPG - Crime & Policing Group,WEST YORKSHIRE POLICE (G),537014,"253,692.00"
Home Office,Home Office,06/10/2010,Grant,CPG - Crime & Policing Group,SUSSEX POLICE AUTHORITY 1 (G),537014,"388,302.00"
Home Office,Home Office,07/10/2010,Professional & Admin Services.Business admin services - PROG,CPG - Crime & Policing Group,CATCH22,1822382,"48,129.66"
Home Office,Home Office,08/10/2010,"Science, Technical & Research.Social Research",CPG - Crime & Policing Group,TNS-BMRB,1815221,"447,552.03"
Home Office,Home Office,08/10/2010,Management & Admin Serv.Corp & Bus Org Structure- PROG,CPG - Crime & Policing Group,LIVERPOOL JOHN MOORES  UNIVERSITY,1748143,"41,451.64"
Home Office,Home Office,10/10/2010,Grant,CPG - Crime & Policing Group,COVENTRY PRIMARY CARE TRUST (G),542728,"228,594.49"
Home Office,Home Office,10/10/2010,Grant,CPG - Crime & Policing Group,WOLVERHAMPTON CITY PCT,542728,"419,488.84"
Home Office,Home Office,11/10/2010,Grant,CPG - Crime & Policing Group,ISA (G),548414,"1,007,399.00"
Home Office,Home Office,11/10/2010,Grant,CPG - Crime & Policing Group,STAFFORDSHIRE POLICE AUTHORITY (G),546446,"35,000.00"
Home Office,Home Office,11/10/2010,Grant,CPG - Crime & Policing Group,RICHMOND AND TWICKENHAM PCT (G),548334,"58,741.88"
Home Office,Home Office,11/10/2010,Grant,CPG - Crime & Policing Group,WARWICKSHIRE COUNTY COUNCIL 1 (G),548334,"208,767.78"
Home Office,Home Office,11/10/2010,Grant,CPG - Crime & Policing Group,WOLVERHAMPTON CITY PCT,548334,"209,744.42"
Home Office,Home Office,11/10/2010,Grant,CPG - Crime & Policing Group,LONDON BOROUGH OF HOUNSLOW 1 (G),548334,"376,480.64"
Home Office,Home Office,11/10/2010,Grant,CPG - Crime & Policing Group,ESSEX COUNTY COUNCIL 1 (G),548334,"419,571.56"
Home Office,Home Office,11/10/2010,Grant,CPG - Crime & Policing Group,BRISTOL CITY COUNCIL (SOC SER) (G),548334,"1,181,838.09"
Home Office,Home Office,11/10/2010,Grant,CPG - Crime & Policing Group,BUCKINGHAMSHIRE COUNTY COUNCIL 1 (,548334,"149,664.28"
Home Office,Home Office,12/10/2010,Defense & Law Enforcement.Police Liaison Officers,CPG - Crime & Policing Group,METROPOLITAN POLICE,1825742,"145,122.25"
Home Office,Home Office,12/10/2010,Defense & Law Enforcement.Police Liaison Officers,CPG - Crime & Policing Group,AVON & SOMERSET POLICE AUTHORITY,1826678,"60,000.00"
Home Office,Home Office,12/10/2010,Defense & Law Enforcement.Police Liaison Officers,CPG - Crime & Policing Group,DURHAM POLICE AUTHORITY,1826703,"38,690.10"
Home Office,Home Office,12/10/2010,Grant,CPG - Crime & Policing Group,POLICE DEPENDANTS' TRUST (G),546424,"25,444.67"
Home Office,Home Office,12/10/2010,Grant,CPG - Crime & Policing Group,CEREDIGION COUNTY COUNCIL (G),550112,"35,782.50"
Home Office,Home Office,12/10/2010,Grant,CPG - Crime & Policing Group,ISLE OF ANGLESEY COUNTY COUNCIL 1,550160,"37,933.00"
Home Office,Home Office,12/10/2010,Grant,CPG - Crime & Policing Group,PEMBROKESHIRE COUNTY COUNCIL1 (G),550024,"45,185.00"
Home Office,Home Office,12/10/2010,Grant,CPG - Crime & Policing Group,POWYS COUNTY COUNCIL 1 (G),550026,"46,963.50"
Home Office,Home Office,12/10/2010,Grant,CPG - Crime & Policing Group,MONMOUTHSHIRE COUNTY COUNCIL 1 (G),550070,"48,854.00"
Home Office,Home Office,12/10/2010,Grant,CPG - Crime & Policing Group,GWYNEDD COUNCIL (G),550132,"49,973.00"
Home Office,Home Office,12/10/2010,Grant,CPG - Crime & Policing Group,MERTHYR TYDFIL BOROUGH COUNCIL (G),550138,"51,005.50"
Home Office,Home Office,12/10/2010,Grant,CPG - Crime & Policing Group,CONWY COUNTY BOROUGH COUNCIL (G),550126,"52,519.50"
Home Office,Home Office,12/10/2010,Grant,CPG - Crime & Policing Group,DENBIGHSHIRE COUNTY COUNCIL (G),550128,"53,097.00"
Home Office,Home Office,12/10/2010,Grant,CPG - Crime & Policing Group,TORFAEN COUNTY BOROUGH (G),550062,"54,429.00"
Home Office,Home Office,12/10/2010,Grant,CPG - Crime & Policing Group,BLAENAU GWENT COUNTY BOROUGH COUNC,550036,"55,709.50"
Home Office,Home Office,12/10/2010,Grant,CPG - Crime & Policing Group,CARMARTHENSHIRE COUNTY COUNCIL 1 (,550096,"59,442.50"
Home Office,Home Office,12/10/2010,Grant,CPG - Crime & Policing Group,FLINTSHIRE COUNTY COUNCIL 1 (G),550088,"61,601.50"
Home Office,Home Office,12/10/2010,Grant,CPG - Crime & Policing Group,VALE OF GLAMORGAN (G),550146,"61,886.00"
Home Office,Home Office,12/10/2010,Grant,CPG - Crime & Policing Group,WREXHAM COUNTY BOROUGH COUNCIL (G),550120,"68,583.00"
Home Office,Home Office,12/10/2010,Grant,CPG - Crime & Policing Group,BRIDGEND COUNTY BOROUGH COUNCIL 1,550008,"69,529.50"
Home Office,Home Office,12/10/2010,Grant,CPG - Crime & Policing Group,NEWPORT COUNTY BOROUGH COUNCIL 1 (,550066,"86,806.50"
Home Office,Home Office,12/10/2010,Grant,CPG - Crime & Policing Group,CAERPHILLY COUNTY BOROUGH COUNCIL,550020,"88,933.50"
Home Office,Home Office,12/10/2010,Grant,CPG - Crime & Policing Group,RHONDDA CYNON TAFF (G),550100,"102,027.00"
Home Office,Home Office,12/10/2010,Grant,CPG - Crime & Policing Group,CARDIFF COUNTY COUNCIL 1 (G),550156,"184,586.00"
Home Office,Home Office,12/10/2010,Grant,CPG - Crime & Policing Group,CARDIFF COUNTY COUNCIL 1 (G),550156-1,"37,194.00"
Home Office,Home Office,13/10/2010,Grant,CPG - Crime & Policing Group,LEICESTERSHIRE POLICE AUTHORITY (G,547894,"700,000.00"
Home Office,Home Office,13/10/2010,Grant,CPG - Crime & Policing Group,SOUTH WALES POLICE AUTHORITY 1 (G),546416,"33,445.00"
Home Office,Home Office,13/10/2010,Grant,CPG - Crime & Policing Group,SOUTH WALES POLICE AUTHORITY 1 (G),546416-1,"118,376.00"
Home Office,Home Office,14/10/2010,Defense & Law Enforcement.Police Liaison Officers,CPG - Crime & Policing Group,LEICESTERSHIRE CONSTABULARY,1827909,"70,200.00"
Home Office,Home Office,14/10/2010,Grant,CPG - Crime & Policing Group,METROPOLITAN POLICE AUTHORITY  (G),553786,"88,008.96"
Home Office,Home Office,18/10/2010,Events Management.Publicity: Exhibitions PROG,CPG - Crime & Policing Group,CATCH22,1776719,"76,691.17"
Home Office,Home Office,18/10/2010,Events Management.Publicity: Exhibitions PROG,CPG - Crime & Policing Group,CATCH22,1800335,"76,691.17"
Home Office,Home Office,19/10/2010,Grant,CPG - Crime & Policing Group,POLICE DEPENDANTS' TRUST (G),554840,"47,671.84"
Home Office,Home Office,19/10/2010,Grant,CPG - Crime & Policing Group,SHEFFIELD DA FORUM (G),558506,"32,500.00"
Home Office,Home Office,19/10/2010,Grant,CPG - Crime & Policing Group,NATIONAL UNION OF STUDENTS (G),558578,"40,000.00"
Home Office,Home Office,20/10/2010,Laboratory & Scientific Equip.Dimension measuring equip,CPG - Crime & Policing Group,CONCATENO UK LIMITED,1788300,"46,630.82"
Home Office,Home Office,20/10/2010,Laboratory & Scientific Equip.Dimension measuring equip,CPG - Crime & Policing Group,CONCATENO UK LIMITED,1812743,"44,699.82"
Home Office,Home Office,20/10/2010,Grant,CPG - Crime & Policing Group,SOUTH WALES POLICE AUTHORITY 1 (G),559368,"35,000.00"
Home Office,Home Office,20/10/2010,Grant,CPG - Crime & Policing Group,LEICESTERSHIRE CONSTABULARY 1 (G),559368,"35,000.00"
Home Office,Home Office,20/10/2010,Grant,CPG - Crime & Policing Group,LEICESTERSHIRE CONSTABULARY 1 (G),559400,"35,000.00"
Home Office,Home Office,20/10/2010,Grant,CPG - Crime & Policing Group,METROPOLITAN POLICE SERVICE (G),559400,"180,349.47"
Home Office,Home Office,20/10/2010,Grant,CPG - Crime & Policing Group,TRIBAL EDUCATION UK LIMITED (G),559378,"320,201.00"
Home Office,Home Office,21/10/2010,Grant,CPG - Crime & Policing Group,OXFORDSHIRE COUNTY COUNCIL 1 (G),559334,"25,171.75"
Home Office,Home Office,21/10/2010,Grant,CPG - Crime & Policing Group,GLOUCESTERSHIRE COUNTY COUNCIL 1 (,559334,"25,519.13"
Home Office,Home Office,21/10/2010,Grant,CPG - Crime & Policing Group,SUFFOLK COUNTY COUNCIL (G),559334,"25,573.25"
Home Office,Home Office,21/10/2010,Grant,CPG - Crime & Policing Group,LONDON BOROUGH OF LEWISHAM 1 (G),559334,"25,892.50"
Home Office,Home Office,21/10/2010,Grant,CPG - Crime & Policing Group,LINCOLNSHIRE COUNTY COUNCIL 1 (G),559334,"26,131.00"
Home Office,Home Office,21/10/2010,Grant,CPG - Crime & Policing Group,CHESHIRE EAST BC (G),559334,"26,289.50"
Home Office,Home Office,21/10/2010,Grant,CPG - Crime & Policing Group,SHROPSHIRE COUNTY COUNCIL 1 (G),559334,"26,691.75"
Home Office,Home Office,21/10/2010,Grant,CPG - Crime & Policing Group,LONDON BOROUGH OF BARNET 1 (G),559334,"26,918.00"
Home Office,Home Office,21/10/2010,Grant,CPG - Crime & Policing Group,WAKEFIELD MDC 1 (G),559334,"27,027.75"
Home Office,Home Office,21/10/2010,Grant,CPG - Crime & Policing Group,DEVON COUNTY COUNCIL 1 (G),559334,"27,229.63"
Home Office,Home Office,21/10/2010,Grant,CPG - Crime & Policing Group,LEICESTERSHIRE COUNTY COUNCIL 1 (G,559334,"27,537.25"
Home Office,Home Office,21/10/2010,Grant,CPG - Crime & Policing Group,BRISTOL CITY COUNCIL 1 (G),559334,"27,911.63"
Home Office,Home Office,21/10/2010,Grant,CPG - Crime & Policing Group,LONDON BOROUGH OF BRENT (G),559334,"27,984.00"
Home Office,Home Office,21/10/2010,Grant,CPG - Crime & Policing Group,NORTHAMPTONSHIRE COUNTY COUNCIL 1,559334,"30,894.13"
Home Office,Home Office,21/10/2010,Grant,CPG - Crime & Policing Group,NORFOLK COUNTY COUNCIL 1 (G),559334,"31,203.50"
Home Office,Home Office,21/10/2010,Grant,CPG - Crime & Policing Group,DERBYSHIRE COUNTY COUNCIL 1 (G),559344,"32,371.25"
Home Office,Home Office,21/10/2010,Grant,CPG - Crime & Policing Group,STAFFORDSHIRE COUNTY COUNCIL 1 (G),559334,"35,708.00"
Home Office,Home Office,21/10/2010,Grant,CPG - Crime & Policing Group,KINGSTON UPON HULL CITY COUNCIL 2,559334,"37,411.00"
Home Office,Home Office,21/10/2010,Grant,CPG - Crime & Policing Group,CUMBRIA COUNTY COUNCIL 1 (G),559334,"39,968.25"
Home Office,Home Office,21/10/2010,Grant,CPG - Crime & Policing Group,HERTFORDSHIRE COUNTY COUNCIL 1 (G),559334,"41,853.38"
Home Office,Home Office,21/10/2010,Grant,CPG - Crime & Policing Group,DURHAM COUNTY COUNCIL 1 (G),559334,"46,849.50"
Home Office,Home Office,21/10/2010,Grant,CPG - Crime & Policing Group,ESSEX COUNTY COUNCIL 1 (G),559334,"46,957.50"
Home Office,Home Office,21/10/2010,Grant,CPG - Crime & Policing Group,LANCASHIRE COUNTY COUNCIL 1 (G),559334,"49,301.13"
Home Office,Home Office,21/10/2010,Grant,CPG - Crime & Policing Group,LIVERPOOL CITY COUNCIL 1 (G),559334,"54,372.75"
Home Office,Home Office,21/10/2010,Grant,CPG - Crime & Policing Group,WEST SUSSEX COUNTY COUNCIL 1 (G),559334,"60,428.75"
Home Office,Home Office,21/10/2010,Grant,CPG - Crime & Policing Group,BIRMINGHAM CITY COUNCIL (G),559334,"61,660.13"
Home Office,Home Office,21/10/2010,Grant,CPG - Crime & Policing Group,NOTTINGHAMSHIRE COUNTY COUNCIL 2 (,559334,"71,215.75"
Home Office,Home Office,21/10/2010,Grant,CPG - Crime & Policing Group,MANCHESTER CITY COUNCIL 2 (G),559334,"74,874.00"
Home Office,Home Office,21/10/2010,Grant,CPG - Crime & Policing Group,SURREY COUNTY COUNCIL 1 (G),559334,"80,050.00"
Home Office,Home Office,21/10/2010,Grant,CPG - Crime & Policing Group,HAMPSHIRE CC (HAMPSHIRE DAT) (G),559334,"89,593.00"
Home Office,Home Office,21/10/2010,Grant,CPG - Crime & Policing Group,LEEDS CITY COUNCIL 1 (G),559334,"90,457.75"
Home Office,Home Office,21/10/2010,Grant,CPG - Crime & Policing Group,KENT COUNTY COUNCIL 1 (G),559334,"109,750.50"
Home Office,Home Office,22/10/2010,Professional & Admin Services.Seconded in Staff costs - PROG,CPG - Crime & Policing Group,METROPOLITAN POLICE,1833213,"38,801.56"
Home Office,Home Office,22/10/2010,Grant,CPG - Crime & Policing Group,ACPO (G),562716,"411,844.00"
Home Office,Home Office,22/10/2010,Grant,CPG - Crime & Policing Group,GREATER LONDON AUTHORITY (G),558520-1,"86,956.00"
Home Office,Home Office,22/10/2010,Grant,CPG - Crime & Policing Group,GREATER LONDON AUTHORITY (G),558520,"101,498.00"
Home Office,Home Office,22/10/2010,Grant,CPG - Crime & Policing Group,ACCESS NORTHERN IRELAND (G),563414-1,"38,436.95"
Home Office,Home Office,22/10/2010,Grant,CPG - Crime & Policing Group,ACCESS NORTHERN IRELAND (G),563414,"565,029.01"
Home Office,Home Office,22/10/2010,Grant,CPG - Crime & Policing Group,MERSEYSIDE POLICE AUTHORITY 1 (G),562570,"35,000.00"
Home Office,Home Office,22/10/2010,Grant,CPG - Crime & Policing Group,HUMBERSIDE POLICE AUTHORITY (G),562570,"35,000.00"
Home Office,Home Office,22/10/2010,Grant,CPG - Crime & Policing Group,LANCASHIRE POLICE AUTHORITY 1 (G),562570,"60,000.00"
Home Office,Home Office,22/10/2010,Grant,CPG - Crime & Policing Group,YOUTH JUSTICE BOARD (G),559268,"4,250,000.00"
Home Office,Home Office,22/10/2010,Grant,CPG - Crime & Policing Group,CATCH 22 (G),561380,"1,257,757.50"
Home Office,Home Office,22/10/2010,Grant,CPG - Crime & Policing Group,NEATH & PORT TALBOT BOROUGH (G),560402,"73,967.00"
Home Office,Home Office,22/10/2010,Grant,CPG - Crime & Policing Group,CITY AND COUNTY OF SWANSEA 1 (G),560404,"149,239.50"
Home Office,Home Office,22/10/2010,Grant,CPG - Crime & Policing Group,CITY AND COUNTY OF SWANSEA 1 (G),560404-1,"29,587.50"
Home Office,Home Office,22/10/2010,Grant,CPG - Crime & Policing Group,BRACKNELL FOREST BC (G),558564,"50,798.52"
Home Office,Home Office,22/10/2010,Grant,CPG - Crime & Policing Group,THURROCK COUNCIL 1 (G),558564,"76,317.34"
Home Office,Home Office,22/10/2010,Grant,CPG - Crime & Policing Group,SOUTH TYNESIDE MBC (G),558564,"123,878.22"
Home Office,Home Office,22/10/2010,Grant,CPG - Crime & Policing Group,WOLVERHAMPTON CITY PCT,558564,"209,744.42"
Home Office,Home Office,25/10/2010,"IT, Broadcasting & Telecomms.IT Running Cost - Maint - PROG",CPG - Crime & Policing Group,LOGICA CMG UK LTD,1818479,"49,811.78"
Home Office,Home Office,26/10/2010,Grant,CPG - Crime & Policing Group,PNB OFFICIAL SIDE SECRETARIAL (G),567220,"78,930.76"
Home Office,Home Office,26/10/2010,Grant,CPG - Crime & Policing Group,SUPERINTENDENTS ASSOCIATION (G),567220,"171,075.05"
Home Office,Home Office,26/10/2010,Grant,CPG - Crime & Policing Group,DERBYSHIRE POLICE AUTHORITY 1 (G),562788,"49,457.00"
Home Office,Home Office,26/10/2010,Grant,CPG - Crime & Policing Group,HERTFORDSHIRE POLICE AUTHORITY 1 (,562788,"104,357.00"
Home Office,Home Office,26/10/2010,Grant,CPG - Crime & Policing Group,GLOUCESTERSHIRE POLICE AUTHORITY (,562788,"168,392.00"
Home Office,Home Office,26/10/2010,Grant,CPG - Crime & Policing Group,LEICESTERSHIRE POLICE AUTHORITY (G,562788,"203,341.00"
Home Office,Home Office,26/10/2010,Grant,CPG - Crime & Policing Group,SUSSEX POLICE AUTHORITY 1 (G),562788,"232,087.00"
Home Office,Home Office,27/10/2010,"Science, Technical & Research.Social Research",CPG - Crime & Policing Group,TNS-BMRB,1836063,"447,552.02"
Home Office,Home Office,27/10/2010,Grant,CPG - Crime & Policing Group,CITY AND COUNTY OF SWANSEA 1 (G),563072,"293,479.00"
Home Office,Home Office,27/10/2010,Grant,CPG - Crime & Policing Group,CITY AND COUNTY OF SWANSEA 1 (G),563072-1,"118,350.00"
Home Office,Home Office,28/10/2010,"Building, Construction Service.Building ConstructionServ-PROG",CPG - Crime & Policing Group,"KELLOGG, BROWN AND ROOT LTD",1837721,"37,183.42"
Home Office,Home Office,28/10/2010,Grant,CPG - Crime & Policing Group,DEVON & CORNWALL POLICE AUTHORITY,568576,"27,000.00"
Home Office,Home Office,28/10/2010,Grant,CPG - Crime & Policing Group,THE HAVENS KINGS COLLEGE HOSPITAL,568576,"33,000.00"
Home Office,Home Office,28/10/2010,Grant,CPG - Crime & Policing Group,NORTH YORKSHIRE POLICE AUTHORITY (,568576,"75,000.00"
Home Office,Home Office,28/10/2010,Grant,CPG - Crime & Policing Group,CO-ORDINATED ACTION AGAINST DOMEST,569506,"275,500.00"
Home Office,Home Office,28/10/2010,Grant,CPG - Crime & Policing Group,CO-ORDINATED ACTION AGAINST DOMEST,569500,"27,550.00"
Home Office,Home Office,28/10/2010,Grant,CPG - Crime & Policing Group,NOTTINGHAM RAPE CRISIS CENTRE (G),568576,"25,000.00"
Home Office,Home Office,29/10/2010,IT & Telecommunications.IT & Telecommunications,CPG - Crime & Policing Group,LOGICA CMG (UK) LIMITED,1820942,"242,953.58"
Home Office,Home Office,29/10/2010,Grant,CPG - Crime & Policing Group,NPIA (G),550172,"35,000,000.00"
Home Office,Home Office,29/10/2010,Grant,CPG - Crime & Policing Group,ACPO (G),570854,"201,366.00"
Home Office,Home Office,30/10/2010,Grant,CPG - Crime & Policing Group,TORBAY PCT (G),570862,"96,596.07"
Home Office,Home Office,30/10/2010,Grant,CPG - Crime & Policing Group,PLYMOUTH TEACHING PCT (G),570862,"140,139.04"
Home Office,Home Office,30/10/2010,Grant,CPG - Crime & Policing Group,DEVON PRIMARY CARE TRUST (G),570862,"165,320.16"
Home Office,Home Office,30/10/2010,Grant,CPG - Crime & Policing Group,SUFFOLK COUNTY COUNCIL (G),570862,"228,965.73"
Home Office,Home Office,30/10/2010,Grant,CPG - Crime & Policing Group,WALSALL PCT (G),570862,"326,329.78"
Home Office,Home Office,30/10/2010,Grant,CPG - Crime & Policing Group,WAKFIELD DISTRICT PRIMARY CARE TRU,570862,"520,814.21"
Home Office,Home Office,10/10/2010,OGD RFT,CPG - Crime & Policing Group ,WOLVERHAMPTON CITY PCT,1822180,"419,488.84"
Home Office,Home Office,10/10/2010,OGD RFT,CPG - Crime & Policing Group ,WOLVERHAMPTON CITY PCT,1825679,"209,744.42"
Home Office,Home Office,21/10/2010,"IT, Broadcasting & Telecomms.IT Run Cost � Info Support",CPG - Crime & Policing Group ,NATIONAL TREATMENT AGENCY FOR SUBSTANCE MISUSE,1835989,"53,046.99"
Home Office,Home Office,22/10/2010,OGD RFT,CPG - Crime & Policing Group ,WOLVERHAMPTON CITY PCT,1832324,"209,744.42"
Home Office,Home Office,25/10/2010,"IT, Broadcasting & Telecomms.Call management systems",CPG - Crime & Policing Group ,COI COMMUNICATIONS,1839631,"85,589.94"
Home Office,Home Office,26/10/2010,Professional & Admin Services.Consultancy - Impementation,CPG - Crime & Policing Group HMIC,AUDIT COMMISSION,1833310,"69,262.73"
Home Office,Home Office,05/10/2010,Education & Training Services.Training Dev External - ADMN,Group HR,SKILLSOFT NETG LTD,1820786,"41,018.78"
Home Office,Home Office,06/10/2010,Security & ,Group HR,FCO SERVICES,1826945,"52,593.00"
Home Office,Home Office,12/10/2010,Professional & Admin Services.DWP MyCSP Pension admin fee,Group HR,DWP (SHARED SERVICES),1831354,"152,093.18"
Home Office,Home Office,18/10/2010,Education & Training Services.Training Dev External - ADMN,Group HR,"KNOWLEDGEADVISORS, INC.",1827156,"52,225.00"
Home Office,Home Office,27/10/2010,"Science, Technical & Research.Social Research",Group HR,CABINET OFFICE RM SHARED SERVICES,1844267,"45,348.08"
Home Office,Home Office,01/10/2010,Professional & Admin Services.Business admin services - PROG,OSCT - Office of Security and Counter-Terrorism,MINISTRY OF JUSTICE,1822500,"37,209.29"
Home Office,Home Office,05/10/2010,Storage & Mail Services.Messenger & Reception Services,OSCT - Office of Security and Counter-Terrorism,CT CENTRE (MOD) T/A DSTL,1814732,"472,994.80"
Home Office,Home Office,06/10/2010,Healthcare Services.Healthcare Services - PROG,OSCT - Office of Security and Counter-Terrorism,THE FOOD AND ENVIRONMENT RESEARCH AGENCY,1820122,"46,132.25"
Home Office,Home Office,07/10/2010,Professional & Admin Services.Seconded in Staff costs - PROG,OSCT - Office of Security and Counter-Terrorism,ATOMIC WEAPONS ESTABLISHMENT (AWE) PLC,1818997,"45,801.50"
Home Office,Home Office,08/10/2010,Education & Training Services.Training Dev External - PROG,OSCT - Office of Security and Counter-Terrorism,ATOMIC WEAPONS ESTABLISHMENT (AWE) PLC,1818994,"85,275.62"
Home Office,Home Office,11/10/2010,Professional & Admin Services.Seconded in Staff costs - PROG,OSCT - Office of Security and Counter-Terrorism,METROPOLITAN POLICE AUTHORITY,1816298,"96,413.85"
Home Office,Home Office,19/10/2010,Healthcare Services.Healthcare Services - PROG,OSCT - Office of Security and Counter-Terrorism,CT CENTRE (MOD) T/A DSTL,1830845,"63,895.63"
Home Office,Home Office,19/10/2010,Healthcare Services.Healthcare Services - PROG,OSCT - Office of Security and Counter-Terrorism,THE FOOD AND ENVIRONMENT RESEARCH AGENCY,1830209,"58,628.42"
Home Office,Home Office,19/10/2010,Healthcare Services.Healthcare Services - PROG,OSCT - Office of Security and Counter-Terrorism,CT CENTRE (MOD) T/A DSTL,1830836,"35,079.48"
Home Office,Home Office,19/10/2010,Professional & Admin Services.Business admin services - PROG,OSCT - Office of Security and Counter-Terrorism,WELSH ASSEMBLY GOVERNMENT,1842419,"41,050.00"
Home Office,Home Office,19/10/2010,Grant,OSCT - Office of Security and Counter-Terrorism,DORSET POLICE AUTHORITY 1 (G),558496,"214,520.00"
Home Office,Home Office,20/10/2010,Professional & Admin Services.Consultant - Imp & Del - PROG,OSCT - Office of Security and Counter-Terrorism,KPMG,1831196,"90,569.00"
Home Office,Home Office,21/10/2010,Healthcare Services.Healthcare Services - PROG,OSCT - Office of Security and Counter-Terrorism,CT CENTRE (MOD) T/A DSTL,1830821,"149,732.93"
Home Office,Home Office,28/10/2010,"Clothes, shoes & Personal Care.Clothing - PROG",OSCT - Office of Security and Counter-Terrorism,REMPLOY LTD,1817253,"438,876.48"
Home Office,Home Office,28/10/2010,Professional & Admin Services.Seconded in Staff costs - ADMN,OSCT - Office of Security and Counter-Terrorism,FOREIGN AND COMMONWEALTH OFFICE,1841671,"58,454.70"
Home Office,Home Office,28/10/2010,Professional & Admin Services.Seconded in Staff costs - PROG,OSCT - Office of Security and Counter-Terrorism,CABINET OFFICE,1842933,"45,818.01"
Home Office,Home Office,01/10/2010,OGD RFT,Performance & Finance Directorate,HM REVENUE & CUSTOMS,1830154,"105,157.65"
Home Office,Home Office,08/10/2010,OGD RFT,Performance & Finance Directorate,HM REVENUE & CUSTOMS,1830172,"318,075.50"
Home Office,Home Office,22/10/2010,Utilities.Telephone Comms - PROG,Performance & Finance Directorate,OGC BUYING SOLUTIONS,1838453,"119,354.16"
Home Office,Home Office,25/10/2010,"IT, Broadcasting & Telecomms.Call management systems - ADMN",Performance & Finance Directorate,HM PRISON SERVICE,1838460,"646,668.30"
Home Office,Home Office,25/10/2010,Professional & Admin Services.SBS PFI � Infra & Helpdesk,Performance & Finance Directorate,HM PRISON SERVICE,1838461,"26,288.28"
Home Office,Home Office,04/10/2010,IT & Telecoms,PFD*,VODAFONE CORPORATE,1819115,"42,098.67"
Home Office,Home Office,04/10/2010,IT & Telecoms,PFD*,VODAFONE CORPORATE,1819110,"32,210.67"
Home Office,Home Office,04/10/2010,IT & Telecoms,PFD*,VODAFONE CORPORATE,1819119,"32,166.73"
Home Office,Home Office,05/10/2010,Professional & Admin Services,PFD*,ATKINS LTD,1747061,"49,283.67"
Home Office,Home Office,06/10/2010,Travel,PFD*,CARLSON WAGONLIT TRAVEL,1820848,"106,038.36"
Home Office,Home Office,11/10/2010,Travel,PFD*,LEX AUTOLEASE LTD,1824475,"67,875.23"
Home Office,Home Office,12/10/2010,Travel,PFD*,CARLSON WAGONLIT TRAVEL,1825910,"54,713.33"
Home Office,Home Office,13/10/2010,Professional & Admin Services,PFD*,DETICA LTD,1825638,"121,386.31"
Home Office,Home Office,13/10/2010,IT & Telecoms,PFD*,IBM DIRECT UNITED KINGDOM LTD,1786266,"76,744.38"
Home Office,Home Office,14/10/2010,Professional & Admin Services.Business admin services - PROG,PFD*,KPMG LLP,1812058,"811,519.87"
Home Office,Home Office,18/10/2010,Estates & Facilities,PFD*,ANNES GATE PROPERTY PLC,1829020,"30,873.69"
Home Office,Home Office,19/10/2010,Marketing & Comms,PFD*,NYS CORPORATE LTD,1830776,"38,234.03"
Home Office,Home Office,20/10/2010,Professional & Admin Services,PFD*,PRUDENTIAL PROP INV MANAGERS L,1812808,"1,145,674.46"
Home Office,Home Office,20/10/2010,Travel,PFD*,CARLSON WAGONLIT TRAVEL,1830983,"161,937.46"
Home Office,Home Office,22/10/2010,Travel,PFD*,ENTERPRISE RENT-A-CAR UK LTD,1833731,"36,800.65"
Home Office,Home Office,26/10/2010,Travel,PFD*,ARVAL UK LTD,1835837,"66,178.60"
Home Office,Home Office,26/10/2010,Professional & Admin Services.Consultancy - Advice - PROG,PFD*,KPMG LLP,1819836,"39,330.18"
Home Office,Home Office,27/10/2010,Travel,PFD*,CARLSON WAGONLIT TRAVEL,1836877,"98,807.40"
Home Office,Home Office,27/10/2010,Estates & Facilities,PFD*,CATCH22,1828998,"65,317.76"
Home Office,Home Office,12/10/2010,"Science, Technical & Research.Social Research","Research, Dev & Statistics",REAL TIME ANALYZERS INC,1824726,"85,000.00"
Home Office,Home Office,19/10/2010,"Science, Technical & Research.Testing","Research, Dev & Statistics",CT CENTRE (MOD) T/A DSTL,1830825,"48,762.50"
Home Office,Home Office,27/10/2010,Estates & Facilities,"Research, Dev & Statistics",DTZ DEBENHAM TIE LEUNG LTD,1837502,"28,906.05"
Home Office,Home Office,22/07/2010,Professional & Admin Services.Personnel recruitment service,Science & Research Group,APPOINTMENTS COMMISSION,1771777,"36,279.30"
Home Office,Home Office,13/10/2010,"Science, Technical & Research.Testing",Science & Research Group,HM PRISON SERVICE,1829802,"28,573.80"
Home Office,Home Office,04/10/2010,IT & Telecommunications.IT & Telecommunications,SSD - Shared Service Directorate,FUJITSU SERVICES (ALCEDO) LTD,1819186,"654,690.67"
Home Office,Home Office,04/10/2010,"Science, Technical & Research.Computer services - PROG",SSD - Shared Service Directorate,FINCORE LTD,1811848,"41,078.00"
Home Office,Home Office,08/10/2010,IT & Telecommunications.IT & Telecommunications,SSD - Shared Service Directorate,FUJITSU SERVICES (ALCEDO) LTD,1806399,"36,092.95"
Home Office,Home Office,08/10/2010,Management & Admin Serv.Temporary managerial staff,SSD - Shared Service Directorate,ADVANTAGE TECHNICAL RESOURCING,1822048,"26,222.24"
Home Office,Home Office,12/10/2010,IT & Telecommunications.IT & Telecommunications - PROG,SSD - Shared Service Directorate,FUJITSU SERVICES (ALCEDO) LTD,1809713,"130,571.92"
Home Office,Home Office,14/10/2010,"IT, Broadcasting & Telecomms.IT Running Cost - Maint - PROG",SSD - Shared Service Directorate,ATOS ORIGIN IT SERVICES UK LIMITED- MEDICAL SERVICES,1809858,"1,878,677.81"
Home Office,Home Office,14/10/2010,"Science, Technical & Research.Computer services - PROG",SSD - Shared Service Directorate,ATOS ORIGIN IT SERVICES UK LIMITED- MEDICAL SERVICES,1813210,"82,141.90"
Home Office,Home Office,14/10/2010,"IT, Broadcasting & Telecomms.IT Running Cost - Maint - PROG",SSD - Shared Service Directorate,ATOS ORIGIN IT SERVICES UK LIMITED- MEDICAL SERVICES,1822486,"54,067.82"
Home Office,Home Office,19/10/2010,"IT, Broadcasting & Telecomms.IT Running Cost - Maint - PROG",SSD - Shared Service Directorate,SERCO  LTD,1814546,"615,067.85"
Home Office,Home Office,22/10/2010,"IT, Broadcasting & Telecomms.IT Run Costs Other - ADMN",SSD - Shared Service Directorate,CABLE & WIRELESS,1829870,"320,992.54"
Home Office,Home Office,25/10/2010,"Transport, Storage & Mail Serv.File (Archive) Storage - ADMN",SSD - Shared Service Directorate,TNT UK LIMITED,1834984,"35,500.87"
Home Office,Home Office,26/10/2010,"IT, Broadcasting & Telecomms.Software - ADMN",SSD - Shared Service Directorate,FUJITSU SERVICES (ALCEDO) LTD,1819190,"92,698.10"
Home Office,Home Office,26/10/2010,"IT, Broadcasting & Telecomms.Software - ADMN",SSD - Shared Service Directorate,FUJITSU SERVICES LTD,1819191,"47,000.00"
Home Office,Home Office,26/10/2010,IT & Telecommunications.IT & Telecommunications - ADMN,SSD - Shared Service Directorate,FUJITSU SERVICES (ALCEDO) LTD,1819179,"43,840.42"
Home Office,Home Office,26/10/2010,"IT, Broadcasting & Telecomms.IT Run Cost � Info Support",SSD - Shared Service Directorate,FUJITSU SERVICES (ALCEDO) LTD,1819184,"29,170.84"
Home Office,Home Office,27/10/2010,"IT, Broadcasting & Telecomms.IT Running Cost - Maint - PROG",SSD - Shared Service Directorate,ATOS ORIGIN IT SERVICES UK LIMITED- MEDICAL SERVICES,1836705,"39,103.67"
Home Office,Home Office,29/10/2010,"IT, Broadcasting & Telecomms.Sirius - Other Services - ADMN",SSD - Shared Service Directorate,FUJITSU SERVICES (ALCEDO) LTD,1818054,"7,562,389.33"
Home Office,Home Office,29/10/2010,Professional & Admin Services.Clerical & Admin Staff - ADMN,SSD - Shared Service Directorate,SPECIALIST COMPUTER CENTRES PLC,1837909,"42,194.25"
Home Office,IPCC - Independent Police Complaints Commission,01/10/2010,Audit Fees - external,IPCC - Independent Police Complaints Commission,NATIONAL AUDIT OFFICE,RCT0033971,"40,000.00"
Home Office,IPCC - Independent Police Complaints Commission,01/10/2010,Rent - Sale Offices,IPCC - Independent Police Complaints Commission,HARTNELL TAYLOR COOK LLP,RCT0033982,"67,174.76"
Home Office,IPS - Identity & Passport Service,01/10/2010,Learning & Development,IPS - Identity & Passport Service,ACAS,135724,"31,020.00"
Home Office,IPS - Identity & Passport Service,01/10/2010,Passport Printing,IPS - Identity & Passport Service,Security Printing Systems Ltd,135744,"1,017,600.44"
Home Office,IPS - Identity & Passport Service,01/10/2010,Passports - Secure Mail,IPS - Identity & Passport Service,SECURE MAIL SERVICES LIMITED,135756,"658,280.30"
Home Office,IPS - Identity & Passport Service,01/10/2010,IT Development,IPS - Identity & Passport Service,Thales,135758,"54,408.38"
Home Office,IPS - Identity & Passport Service,05/10/2010,Other Government Departments,IPS - Identity & Passport Service,Benefits Agency,135763,"113,052.46"
Home Office,IPS - Identity & Passport Service,05/10/2010,Software & Licenses,IPS - Identity & Passport Service,CSC COMPUTER SCIENCES LTD,135771,"1,395,490.08"
Home Office,IPS - Identity & Passport Service,05/10/2010,Passport Printing,IPS - Identity & Passport Service,Security Printing Systems Ltd,135777,"89,184.82"
Home Office,IPS - Identity & Passport Service,05/10/2010,Translation Services and Inter,IPS - Identity & Passport Service,PRESTIGE NETWORK LTD,135782,"27,491.76"
Home Office,IPS - Identity & Passport Service,08/10/2010,Passport Printing,IPS - Identity & Passport Service,Security Printing Systems Ltd,135812,"251,756.37"
Home Office,IPS - Identity & Passport Service,08/10/2010,Passport Processing,IPS - Identity & Passport Service,Siemens Business Services Ltd,135824,"69,685.31"
Home Office,IPS - Identity & Passport Service,12/10/2010,Software & Licenses,IPS - Identity & Passport Service,CSC COMPUTER SCIENCES LTD,135836,"2,113,948.38"
Home Office,IPS - Identity & Passport Service,12/10/2010,Occupational Health Management,IPS - Identity & Passport Service,Health Management Ltd,135844,"35,492.46"
Home Office,IPS - Identity & Passport Service,12/10/2010,Passport Printing,IPS - Identity & Passport Service,Security Printing Systems Ltd,135845,"238,789.16"
Home Office,IPS - Identity & Passport Service,12/10/2010,Accommodation,IPS - Identity & Passport Service,Mapeley ABI Provider Limited,135850,"32,644.70"
Home Office,IPS - Identity & Passport Service,12/10/2010,Contact Centre,IPS - Identity & Passport Service,MM TELEPERFORMANCE,135851,"594,871.70"
Home Office,IPS - Identity & Passport Service,12/10/2010,Other Government Departments,IPS - Identity & Passport Service,Office For National Statistics,135854,"49,999.21"
Home Office,IPS - Identity & Passport Service,12/10/2010,Accommodation,IPS - Identity & Passport Service,WATES INTERIORS LTD,135864,"44,114.83"
Home Office,IPS - Identity & Passport Service,15/10/2010,Passport Stationery,IPS - Identity & Passport Service,ADARE LTD,135867,"146,522.12"
Home Office,IPS - Identity & Passport Service,15/10/2010,Contracted Staff,IPS - Identity & Passport Service,Capita Resourcing Ltd,135872,"52,267.98"
Home Office,IPS - Identity & Passport Service,15/10/2010,Software & Licenses,IPS - Identity & Passport Service,CSC COMPUTER SCIENCES LTD,135876,"348,822.25"
Home Office,IPS - Identity & Passport Service,15/10/2010,Consultancy & Professional Ser,IPS - Identity & Passport Service,ERNST & YOUNG LLP,135879,"234,670.88"
Home Office,IPS - Identity & Passport Service,15/10/2010,Other Government Departments,IPS - Identity & Passport Service,FCO Services,135882,"25,615.00"
Home Office,IPS - Identity & Passport Service,15/10/2010,Passport Printing,IPS - Identity & Passport Service,Security Printing Systems Ltd,135886,"994,178.77"
Home Office,IPS - Identity & Passport Service,15/10/2010,Accommodation,IPS - Identity & Passport Service,Mapeley ABI Provider Limited,135892,"39,921.14"
Home Office,IPS - Identity & Passport Service,15/10/2010,Translation Services and Inter,IPS - Identity & Passport Service,PRESTIGE NETWORK LTD,135901,"28,485.43"
Home Office,IPS - Identity & Passport Service,15/10/2010,Passports - Secure Mail,IPS - Identity & Passport Service,SECURE MAIL SERVICES LIMITED,135908,"562,606.55"
Home Office,IPS - Identity & Passport Service,15/10/2010,IT Development,IPS - Identity & Passport Service,Thales,135911,"327,369.11"
Home Office,IPS - Identity & Passport Service,19/10/2010,Consultancy & Professional Ser,IPS - Identity & Passport Service,ERNST & YOUNG LLP,135925,"162,794.14"
Home Office,IPS - Identity & Passport Service,19/10/2010,Passport Printing,IPS - Identity & Passport Service,Security Printing Systems Ltd,135930,"415,373.63"
Home Office,IPS - Identity & Passport Service,22/10/2010,Other Government Departments,IPS - Identity & Passport Service,Benefits Agency,135949,"113,052.46"
Home Office,IPS - Identity & Passport Service,22/10/2010,Train/Air Travel,IPS - Identity & Passport Service,CAPITA BUSINESS TRAVEL,135953,"29,303.74"
Home Office,IPS - Identity & Passport Service,22/10/2010,Passport Printing,IPS - Identity & Passport Service,Security Printing Systems Ltd,135967,"663,385.22"
Home Office,IPS - Identity & Passport Service,22/10/2010,Accommodation,IPS - Identity & Passport Service,McKibbin Property Consultants,135971,"58,750.02"
Home Office,IPS - Identity & Passport Service,26/10/2010,Contracted Staff,IPS - Identity & Passport Service,Capita Resourcing Ltd,135992,"147,144.64"
Home Office,IPS - Identity & Passport Service,26/10/2010,IT Development,IPS - Identity & Passport Service,IBM UNITED KINGDOM LIMITED,136008,"951,254.15"
Home Office,IPS - Identity & Passport Service,26/10/2010,Contact Centre,IPS - Identity & Passport Service,MM TELEPERFORMANCE,136012,"35,191.75"
Home Office,IPS - Identity & Passport Service,29/10/2010,Contracted Staff,IPS - Identity & Passport Service,Capita Resourcing Ltd,136030,"42,642.01"
Home Office,IPS - Identity & Passport Service,29/10/2010,Software & Licenses,IPS - Identity & Passport Service,CSC COMPUTER SCIENCES LTD,136035,"1,065,694.45"
Home Office,IPS - Identity & Passport Service,29/10/2010,Consultancy & Professional Ser,IPS - Identity & Passport Service,DELOITTE MCS LTD,136036,"30,123.75"
Home Office,IPS - Identity & Passport Service,29/10/2010,Passport Printing,IPS - Identity & Passport Service,De La Rue International Ltd,136037,"1,903,378.98"
Home Office,IPS - Identity & Passport Service,29/10/2010,Legal Fees,IPS - Identity & Passport Service,Field Fisher Waterhouse LLP,136041,"76,268.05"
Home Office,IPS - Identity & Passport Service,29/10/2010,Passport Printing,IPS - Identity & Passport Service,Security Printing Systems Ltd,136044,"2,208,295.51"
Home Office,IPS - Identity & Passport Service,29/10/2010,Other Government Departments,IPS - Identity & Passport Service,HOME OFFICE - AFU CASH MANAGEM,136045,"490,899.76"
Home Office,IPS - Identity & Passport Service,29/10/2010,Accommodation,IPS - Identity & Passport Service,Mapeley ABI Provider Limited,136051,"573,636.16"
Home Office,IPS - Identity & Passport Service,29/10/2010,Consultancy & Professional Ser,IPS - Identity & Passport Service,PA Consulting Group,136054,"74,029.23"
Home Office,NPIA - National Policing Improvement Agency,15/10/2010,Legal fees,CEO Directorate,Eversheds Cambridgeshire,1900056895,"28,297.49"
Home Office,NPIA - National Policing Improvement Agency,22/10/2010,Photocopier charges,CEO Directorate,Xerox (UK) Ltd,1900058182,"25,286.58"
Home Office,NPIA - National Policing Improvement Agency,01/10/2010,Rent of telephone exchange,Information & Communications Technology & Science Directorate,Cable & Wireless Communications,1900057321,"23,529.69"
Home Office,NPIA - National Policing Improvement Agency,01/10/2010,Telephone charges,Information & Communications Technology & Science Directorate,BT Plc,1900057593,"118,340.90"
Home Office,NPIA - National Policing Improvement Agency,01/10/2010,Telephone charges,Information & Communications Technology & Science Directorate,BT Global Services,1900057702,"50,793.45"
Home Office,NPIA - National Policing Improvement Agency,01/10/2010,Telephone charges,Information & Communications Technology & Science Directorate,Cable & Wireless Communications,1700003895,"-23,724.03"
Home Office,NPIA - National Policing Improvement Agency,06/10/2010,IT Managed Services,Information & Communications Technology & Science Directorate,Essex Police Authority,5100045971,"100,000.00"
Home Office,NPIA - National Policing Improvement Agency,06/10/2010,IT Managed Services,Information & Communications Technology & Science Directorate,Siemens Enterprise Comm Ltd,5100046858,"138,542.00"
Home Office,NPIA - National Policing Improvement Agency,06/10/2010,IT Managed Services,Information & Communications Technology & Science Directorate,Siemens Enterprise Comm Ltd,5100046880,"30,000.00"
Home Office,NPIA - National Policing Improvement Agency,06/10/2010,IT Managed Services,Information & Communications Technology & Science Directorate,Siemens Enterprise Comm Ltd,5100046887,"70,000.00"
Home Office,NPIA - National Policing Improvement Agency,06/10/2010,IT Managed Services,Information & Communications Technology & Science Directorate,Northgate Information Solutions UK,5100046890,"26,344.00"
Home Office,NPIA - National Policing Improvement Agency,06/10/2010,IT Managed Services,Information & Communications Technology & Science Directorate,Essex Police Authority,5100046931,"-100,000.00"
Home Office,NPIA - National Policing Improvement Agency,06/10/2010,IT Managed Services,Information & Communications Technology & Science Directorate,Siemens Enterprise Comm Ltd,5100046933,"29,750.00"
Home Office,NPIA - National Policing Improvement Agency,08/10/2010,IT software,Information & Communications Technology & Science Directorate,Northgate Information Solutions UK,5100046917,"170,406.83"
Home Office,NPIA - National Policing Improvement Agency,08/10/2010,IT software,Information & Communications Technology & Science Directorate,Northgate Information Solutions UK,5100046917,-119.83
Home Office,NPIA - National Policing Improvement Agency,11/10/2010,Agency staff,Information & Communications Technology & Science Directorate,Reed Personnel Services Plc,1900057929,"1,638.18"
Home Office,NPIA - National Policing Improvement Agency,11/10/2010,Agency staff,Information & Communications Technology & Science Directorate,Reed Personnel Services Plc,1900057929,"1,158.42"
Home Office,NPIA - National Policing Improvement Agency,11/10/2010,Agency staff,Information & Communications Technology & Science Directorate,Reed Personnel Services Plc,1900057929,"1,801.99"
Home Office,NPIA - National Policing Improvement Agency,11/10/2010,Agency staff,Information & Communications Technology & Science Directorate,Reed Personnel Services Plc,1900057929,"3,594.78"
Home Office,NPIA - National Policing Improvement Agency,15/10/2010,IT Managed Services,Information & Communications Technology & Science Directorate,Siemens Enterprise Comm Ltd,5100047123,"19,040.00"
Home Office,NPIA - National Policing Improvement Agency,15/10/2010,IT Managed Services,Information & Communications Technology & Science Directorate,Siemens Enterprise Comm Ltd,5100047123,"5,950.00"
Home Office,NPIA - National Policing Improvement Agency,15/10/2010,IT Information Support,Information & Communications Technology & Science Directorate,Siemens Enterprise Comm Ltd,5100047259,"26,180.00"
Home Office,NPIA - National Policing Improvement Agency,19/10/2010,IT maintenance,Information & Communications Technology & Science Directorate,ROCK KITCHEN HARRIS LIMITED,5100047177,"50,000.00"
Home Office,NPIA - National Policing Improvement Agency,19/10/2010,Rent of telephone exchange,Information & Communications Technology & Science Directorate,Cable & Wireless Communications,1900057898,"23,529.69"
Home Office,NPIA - National Policing Improvement Agency,19/10/2010,Telephone charges,Information & Communications Technology & Science Directorate,Specialist Computer Centres PLC,5100047473,"28,105.35"
Home Office,NPIA - National Policing Improvement Agency,19/10/2010,Telephone charges,Information & Communications Technology & Science Directorate,Specialist Computer Centres PLC,5100047473,491.85
Home Office,NPIA - National Policing Improvement Agency,19/10/2010,Telephone charges,Information & Communications Technology & Science Directorate,Specialist Computer Centres PLC,5100047473,"28,105.35"
Home Office,NPIA - National Policing Improvement Agency,19/10/2010,Telephone charges,Information & Communications Technology & Science Directorate,Specialist Computer Centres PLC,5100047473,491.85
Home Office,NPIA - National Policing Improvement Agency,19/10/2010,Telecoms <5000,Information & Communications Technology & Science Directorate,Specialist Computer Centres PLC,5100047473,"30,088.48"
Home Office,NPIA - National Policing Improvement Agency,19/10/2010,Telecoms <5000,Information & Communications Technology & Science Directorate,Specialist Computer Centres PLC,5100047473,526.54
Home Office,NPIA - National Policing Improvement Agency,22/10/2010,IT Hardware,Information & Communications Technology & Science Directorate,Logica CMG UK Ltd,5100047410,"2,146,693.00"
Home Office,NPIA - National Policing Improvement Agency,22/10/2010,IT Hardware,Information & Communications Technology & Science Directorate,Logica CMG UK Ltd,5100047538,"-2,146,693.00"
Home Office,NPIA - National Policing Improvement Agency,22/10/2010,IT Hardware,Information & Communications Technology & Science Directorate,Logica CMG UK Ltd,5100047539,"2,146,693.00"
Home Office,NPIA - National Policing Improvement Agency,01/10/2010,Airwave Core Service Charge,Operations Directorate,Airwave Solutions Ltd,5100046387,"14,764,483.34"
Home Office,NPIA - National Policing Improvement Agency,01/10/2010,Airwave Core Service Charge,Operations Directorate,Airwave Solutions Ltd,5100046388,"224,932.61"
Home Office,NPIA - National Policing Improvement Agency,06/10/2010,IT Information Support,Operations Directorate,Cable & Wireless Communications,5100046860,"52,725.00"
Home Office,NPIA - National Policing Improvement Agency,06/10/2010,Airwave Ground Based Network Resilience Serv. Chg,Operations Directorate,Airwave Solutions Ltd,5100046390,"585,739.00"
Home Office,NPIA - National Policing Improvement Agency,06/10/2010,Airwave Ground Based Network Resilience Serv. Chg,Operations Directorate,Airwave Solutions Ltd,5100046390,626.47
Home Office,NPIA - National Policing Improvement Agency,06/10/2010,Airwave Ground Based Network Resilience Serv. Chg,Operations Directorate,Airwave Solutions Ltd,5100046390,-0.3
Home Office,NPIA - National Policing Improvement Agency,19/10/2010,IT maintenance,Operations Directorate,Specialist Computer Centres PLC,5100046870,"133,167.45"
Home Office,NPIA - National Policing Improvement Agency,19/10/2010,Telephone charges,Operations Directorate,Specialist Computer Centres PLC,5100046870,"2,996.25"
Home Office,NPIA - National Policing Improvement Agency,19/10/2010,FM Costs,Operations Directorate,Cable & Wireless Communications,5100046906,"93,639.50"
Home Office,NPIA - National Policing Improvement Agency,19/10/2010,FM Costs,Operations Directorate,Cable & Wireless Communications,5100046906,"3,305.05"
Home Office,NPIA - National Policing Improvement Agency,19/10/2010,FM Costs,Operations Directorate,Cable & Wireless Communications,5100047407,"206,780.03"
Home Office,NPIA - National Policing Improvement Agency,19/10/2010,Other secondees - Basic salaries,People & Development Directorate,Gloucestershire Police Authority,1900058095,"19,529.99"
Home Office,NPIA - National Policing Improvement Agency,22/10/2010,Other consultancy,People & Development Directorate,Critical Simulations Ltd,5100047640,"22,000.00"
Home Office,NPIA - National Policing Improvement Agency,22/10/2010,Other consultancy,People & Development Directorate,Critical Simulations Ltd,5100047640,"3,850.00"
Home Office,NPIA - National Policing Improvement Agency,08/10/2010,IT Managed Services,Policing Policy and Practice Directorate ,The Home Office,5100046398,"29,771.87"
Home Office,NPIA - National Policing Improvement Agency,20/10/2010,IT Information Support,Policing Policy and Practice Directorate ,Steria Ltd,5100047547,"26,550.55"
Home Office,NPIA - National Policing Improvement Agency,20/10/2010,IT consultancy,Policing Policy and Practice Directorate ,Steria Ltd,5100047549,"33,082.30"
Home Office,NPIA - National Policing Improvement Agency,01/10/2010,Land and Buildings maintenance,Resources Directorate,Ellis and Co,1900057781,"48,248.72"
Home Office,NPIA - National Policing Improvement Agency,04/10/2010,IT software,Resources Directorate,Company Watch Ltd,5100044037,"27,000.00"
Home Office,NPIA - National Policing Improvement Agency,04/10/2010,IT software,Resources Directorate,Company Watch Ltd,5100044037,472.5
Home Office,NPIA - National Policing Improvement Agency,04/10/2010,Contractors,Resources Directorate,Hudson Global Resoures,5100046598,712.71
Home Office,NPIA - National Policing Improvement Agency,04/10/2010,Contractors,Resources Directorate,Hudson Global Resoures,5100046598,0.34
Home Office,NPIA - National Policing Improvement Agency,04/10/2010,Contractors,Resources Directorate,Hudson Global Resoures,5100046598,"24,242.40"
Home Office,NPIA - National Policing Improvement Agency,04/10/2010,Contractors,Resources Directorate,Hudson Global Resoures,5100046598,424.24
Home Office,NPIA - National Policing Improvement Agency,04/10/2010,Contractors,Resources Directorate,Hudson Global Resoures,5100046598,"1,003.73"
Home Office,NPIA - National Policing Improvement Agency,04/10/2010,Contractors,Resources Directorate,Hudson Global Resoures,5100046598,13.77
Home Office,NPIA - National Policing Improvement Agency,04/10/2010,Contractors,Resources Directorate,Hudson Global Resoures,5100046598,142.92
Home Office,NPIA - National Policing Improvement Agency,04/10/2010,Contractors,Resources Directorate,Hudson Global Resoures,5100046598,2.69
Home Office,NPIA - National Policing Improvement Agency,04/10/2010,Contractors,Resources Directorate,Hudson Global Resoures,5100046599,"-24,242.40"
Home Office,NPIA - National Policing Improvement Agency,04/10/2010,Contractors,Resources Directorate,Hudson Global Resoures,5100046599,-425.07
Home Office,NPIA - National Policing Improvement Agency,04/10/2010,Contractors,Resources Directorate,Hudson Global Resoures,5100046599,"-1,003.73"
Home Office,NPIA - National Policing Improvement Agency,04/10/2010,Contractors,Resources Directorate,Hudson Global Resoures,5100046599,-14.38
Home Office,NPIA - National Policing Improvement Agency,04/10/2010,Contractors,Resources Directorate,Hudson Global Resoures,5100046599,-142.51
Home Office,NPIA - National Policing Improvement Agency,04/10/2010,Contractors,Resources Directorate,Hudson Global Resoures,5100046599,-2.49
Home Office,NPIA - National Policing Improvement Agency,04/10/2010,Contractors,Resources Directorate,Hudson Global Resoures,5100046599,"-3,351.17"
Home Office,NPIA - National Policing Improvement Agency,04/10/2010,Contractors,Resources Directorate,Hudson Global Resoures,5100046599,-2.17
Home Office,NPIA - National Policing Improvement Agency,08/10/2010,Land and Buildings maintenance,Resources Directorate,Reliance Integrated Services Ltd,5100046766,"18,122.00"
Home Office,NPIA - National Policing Improvement Agency,08/10/2010,Land and Buildings maintenance,Resources Directorate,Reliance Integrated Services Ltd,5100046766,317.14
Home Office,NPIA - National Policing Improvement Agency,08/10/2010,Land and Buildings maintenance,Resources Directorate,Reliance Integrated Services Ltd,5100046766,"71,869.87"
Home Office,NPIA - National Policing Improvement Agency,08/10/2010,Land and Buildings maintenance,Resources Directorate,Reliance Integrated Services Ltd,5100046766,"1,268.03"
Home Office,NPIA - National Policing Improvement Agency,08/10/2010,Land and Buildings maintenance,Resources Directorate,Reliance Integrated Services Ltd,5100046766,"18,122.00"
Home Office,NPIA - National Policing Improvement Agency,08/10/2010,Land and Buildings maintenance,Resources Directorate,Reliance Integrated Services Ltd,5100046766,317.14
Home Office,NPIA - National Policing Improvement Agency,08/10/2010,Land and Buildings maintenance,Resources Directorate,Reliance Integrated Services Ltd,5100046766,"36,244.00"
Home Office,NPIA - National Policing Improvement Agency,08/10/2010,Land and Buildings maintenance,Resources Directorate,Reliance Integrated Services Ltd,5100046766,634.26
Home Office,NPIA - National Policing Improvement Agency,11/10/2010,Agency staff,Resources Directorate,Reed Personnel Services Plc,1900057929,"1,052.74"
Home Office,NPIA - National Policing Improvement Agency,11/10/2010,Agency staff,Resources Directorate,Reed Personnel Services Plc,1900057929,"1,054.32"
Home Office,NPIA - National Policing Improvement Agency,11/10/2010,Agency staff,Resources Directorate,Reed Personnel Services Plc,1900057929,"3,429.99"
Home Office,NPIA - National Policing Improvement Agency,11/10/2010,Agency staff,Resources Directorate,Reed Personnel Services Plc,1900057929,"8,089.13"
Home Office,NPIA - National Policing Improvement Agency,11/10/2010,Agency staff,Resources Directorate,Reed Personnel Services Plc,1900057929,769.26
Home Office,NPIA - National Policing Improvement Agency,15/10/2010,FM Costs,Resources Directorate,Wyboston Lakes Ltd,5100046836,"56,424.48"
Home Office,NPIA - National Policing Improvement Agency,15/10/2010,FM Costs,Resources Directorate,Wyboston Lakes Ltd,5100046579,"95,669.78"
Home Office,NPIA - National Policing Improvement Agency,15/10/2010,FM Costs,Resources Directorate,Wyboston Lakes Ltd,5100046579,"1,674.22"
Home Office,NPIA - National Policing Improvement Agency,20/10/2010,FM Costs,Resources Directorate,The Home Office,5100041819,"80,469.73"
Home Office,NPIA - National Policing Improvement Agency,20/10/2010,FM Costs,Resources Directorate,The Home Office,5100041819,"1,397.75"
Home Office,NPIA - National Policing Improvement Agency,20/10/2010,FM Costs,Resources Directorate,The Home Office,5100041819,728.86
Home Office,NPIA - National Policing Improvement Agency,20/10/2010,FM Costs,Resources Directorate,The Home Office,5100041819,12.76
Home Office,NPIA - National Policing Improvement Agency,20/10/2010,FM Costs,Resources Directorate,The Home Office,5100041819,"22,780.00"
Home Office,NPIA - National Policing Improvement Agency,20/10/2010,FM Costs,Resources Directorate,The Home Office,5100041819,398.65
Home Office,NPIA - National Policing Improvement Agency,20/10/2010,FM Costs,Resources Directorate,The Home Office,5100041819,224.94
Home Office,NPIA - National Policing Improvement Agency,20/10/2010,FM Costs,Resources Directorate,The Home Office,5100041819,3.94
Home Office,NPIA - National Policing Improvement Agency,20/10/2010,FM Costs,Resources Directorate,The Home Office,5100041819,"11,345.68"
Home Office,NPIA - National Policing Improvement Agency,20/10/2010,FM Costs,Resources Directorate,The Home Office,5100041819,198.55
Home Office,NPIA - National Policing Improvement Agency,20/10/2010,FM Costs,Resources Directorate,The Home Office,5100041819,108.06
Home Office,NPIA - National Policing Improvement Agency,20/10/2010,FM Costs,Resources Directorate,The Home Office,5100041819,1.89
Home Office,NPIA - National Policing Improvement Agency,20/10/2010,FM Costs,Resources Directorate,The Home Office,5100041819,"1,589.00"
Home Office,NPIA - National Policing Improvement Agency,20/10/2010,FM Costs,Resources Directorate,The Home Office,5100041819,27.81
Home Office,NPIA - National Policing Improvement Agency,20/10/2010,FM Costs,Resources Directorate,The Home Office,5100041819,56.07
Home Office,NPIA - National Policing Improvement Agency,20/10/2010,FM Costs,Resources Directorate,The Home Office,5100041819,0.98
Home Office,NPIA - National Policing Improvement Agency,20/10/2010,FM Costs,Resources Directorate,The Home Office,5100041819,653.4
Home Office,NPIA - National Policing Improvement Agency,20/10/2010,FM Costs,Resources Directorate,The Home Office,5100041819,95.91
Home Office,NPIA - National Policing Improvement Agency,20/10/2010,FM Costs,Resources Directorate,The Home Office,5100041819,"3,945.64"
Home Office,NPIA - National Policing Improvement Agency,20/10/2010,FM Costs,Resources Directorate,The Home Office,5100041819,69.05
Home Office,NPIA - National Policing Improvement Agency,20/10/2010,FM Costs,Resources Directorate,The Home Office,5100041819,"5,885.92"
Home Office,NPIA - National Policing Improvement Agency,20/10/2010,FM Costs,Resources Directorate,The Home Office,5100041819,103
Home Office,NPIA - National Policing Improvement Agency,20/10/2010,FM Costs,Resources Directorate,The Home Office,5100041819,"1,492.92"
Home Office,NPIA - National Policing Improvement Agency,20/10/2010,FM Costs,Resources Directorate,The Home Office,5100041819,26.12
Home Office,NPIA - National Policing Improvement Agency,20/10/2010,FM Costs,Resources Directorate,The Home Office,5100045990,"80,469.72"
Home Office,NPIA - National Policing Improvement Agency,20/10/2010,FM Costs,Resources Directorate,The Home Office,5100045990,"1,397.21"
Home Office,NPIA - National Policing Improvement Agency,20/10/2010,FM Costs,Resources Directorate,The Home Office,5100045990,728.86
Home Office,NPIA - National Policing Improvement Agency,20/10/2010,FM Costs,Resources Directorate,The Home Office,5100045990,12.76
Home Office,NPIA - National Policing Improvement Agency,20/10/2010,FM Costs,Resources Directorate,The Home Office,5100045990,"22,780.00"
Home Office,NPIA - National Policing Improvement Agency,20/10/2010,FM Costs,Resources Directorate,The Home Office,5100045990,398.65
Home Office,NPIA - National Policing Improvement Agency,20/10/2010,FM Costs,Resources Directorate,The Home Office,5100045990,224.94
Home Office,NPIA - National Policing Improvement Agency,20/10/2010,FM Costs,Resources Directorate,The Home Office,5100045990,3.94
Home Office,NPIA - National Policing Improvement Agency,20/10/2010,FM Costs,Resources Directorate,The Home Office,5100045990,"11,345.68"
Home Office,NPIA - National Policing Improvement Agency,20/10/2010,FM Costs,Resources Directorate,The Home Office,5100045990,198.55
Home Office,NPIA - National Policing Improvement Agency,20/10/2010,FM Costs,Resources Directorate,The Home Office,5100045990,108.6
Home Office,NPIA - National Policing Improvement Agency,20/10/2010,FM Costs,Resources Directorate,The Home Office,5100045990,1.9
Home Office,NPIA - National Policing Improvement Agency,20/10/2010,FM Costs,Resources Directorate,The Home Office,5100045990,"1,589.00"
Home Office,NPIA - National Policing Improvement Agency,20/10/2010,FM Costs,Resources Directorate,The Home Office,5100045990,27.81
Home Office,NPIA - National Policing Improvement Agency,20/10/2010,FM Costs,Resources Directorate,The Home Office,5100045990,56.07
Home Office,NPIA - National Policing Improvement Agency,20/10/2010,FM Costs,Resources Directorate,The Home Office,5100045990,0.98
Home Office,NPIA - National Policing Improvement Agency,20/10/2010,FM Costs,Resources Directorate,The Home Office,5100045990,653.4
Home Office,NPIA - National Policing Improvement Agency,20/10/2010,FM Costs,Resources Directorate,The Home Office,5100045990,95.91
Home Office,NPIA - National Policing Improvement Agency,20/10/2010,FM Costs,Resources Directorate,The Home Office,5100045990,"3,945.64"
Home Office,NPIA - National Policing Improvement Agency,20/10/2010,FM Costs,Resources Directorate,The Home Office,5100045990,69.05
Home Office,NPIA - National Policing Improvement Agency,20/10/2010,FM Costs,Resources Directorate,The Home Office,5100045990,"5,885.92"
Home Office,NPIA - National Policing Improvement Agency,20/10/2010,FM Costs,Resources Directorate,The Home Office,5100045990,103
Home Office,NPIA - National Policing Improvement Agency,20/10/2010,FM Costs,Resources Directorate,The Home Office,5100045990,"1,492.92"
Home Office,NPIA - National Policing Improvement Agency,20/10/2010,FM Costs,Resources Directorate,The Home Office,5100045990,26.12
Home Office,NPIA - National Policing Improvement Agency,20/10/2010,FM Costs,Resources Directorate,The Home Office,5100044161,"80,631.15"
Home Office,NPIA - National Policing Improvement Agency,20/10/2010,FM Costs,Resources Directorate,The Home Office,5100044161,"1,449.05"
Home Office,NPIA - National Policing Improvement Agency,20/10/2010,FM Costs,Resources Directorate,The Home Office,5100044161,728.86
Home Office,NPIA - National Policing Improvement Agency,20/10/2010,FM Costs,Resources Directorate,The Home Office,5100044161,12.76
Home Office,NPIA - National Policing Improvement Agency,20/10/2010,FM Costs,Resources Directorate,The Home Office,5100044161,"22,780.00"
Home Office,NPIA - National Policing Improvement Agency,20/10/2010,FM Costs,Resources Directorate,The Home Office,5100044161,398.65
Home Office,NPIA - National Policing Improvement Agency,20/10/2010,FM Costs,Resources Directorate,The Home Office,5100044161,224.94
Home Office,NPIA - National Policing Improvement Agency,20/10/2010,FM Costs,Resources Directorate,The Home Office,5100044161,3.94
Home Office,NPIA - National Policing Improvement Agency,20/10/2010,FM Costs,Resources Directorate,The Home Office,5100044161,"11,345.68"
Home Office,NPIA - National Policing Improvement Agency,20/10/2010,FM Costs,Resources Directorate,The Home Office,5100044161,198.55
Home Office,NPIA - National Policing Improvement Agency,20/10/2010,FM Costs,Resources Directorate,The Home Office,5100044161,108.06
Home Office,NPIA - National Policing Improvement Agency,20/10/2010,FM Costs,Resources Directorate,The Home Office,5100044161,1.89
Home Office,NPIA - National Policing Improvement Agency,20/10/2010,FM Costs,Resources Directorate,The Home Office,5100044161,"1,589.00"
Home Office,NPIA - National Policing Improvement Agency,20/10/2010,FM Costs,Resources Directorate,The Home Office,5100044161,27.81
Home Office,NPIA - National Policing Improvement Agency,20/10/2010,FM Costs,Resources Directorate,The Home Office,5100044161,40
Home Office,NPIA - National Policing Improvement Agency,20/10/2010,FM Costs,Resources Directorate,The Home Office,5100044161,0.7
Home Office,NPIA - National Policing Improvement Agency,20/10/2010,FM Costs,Resources Directorate,The Home Office,5100044161,56.07
Home Office,NPIA - National Policing Improvement Agency,20/10/2010,FM Costs,Resources Directorate,The Home Office,5100044161,0.98
Home Office,NPIA - National Policing Improvement Agency,20/10/2010,FM Costs,Resources Directorate,The Home Office,5100044161,432.55
Home Office,NPIA - National Policing Improvement Agency,20/10/2010,FM Costs,Resources Directorate,The Home Office,5100044161,63.34
Home Office,NPIA - National Policing Improvement Agency,20/10/2010,FM Costs,Resources Directorate,The Home Office,5100044161,"3,945.64"
Home Office,NPIA - National Policing Improvement Agency,20/10/2010,FM Costs,Resources Directorate,The Home Office,5100044161,69.05
Home Office,NPIA - National Policing Improvement Agency,20/10/2010,FM Costs,Resources Directorate,The Home Office,5100044161,"5,885.92"
Home Office,NPIA - National Policing Improvement Agency,20/10/2010,FM Costs,Resources Directorate,The Home Office,5100044161,103
Home Office,NPIA - National Policing Improvement Agency,20/10/2010,FM Costs,Resources Directorate,The Home Office,5100044161,"1,492.92"
Home Office,NPIA - National Policing Improvement Agency,20/10/2010,FM Costs,Resources Directorate,The Home Office,5100044161,26.12
Home Office,NPIA - National Policing Improvement Agency,22/10/2010,FM Costs,Resources Directorate,The Home Office,5100046086,"80,308.30"
Home Office,NPIA - National Policing Improvement Agency,22/10/2010,FM Costs,Resources Directorate,The Home Office,5100046086,"1,409.12"
Home Office,NPIA - National Policing Improvement Agency,22/10/2010,FM Costs,Resources Directorate,The Home Office,5100046086,"2,598.00"
Home Office,NPIA - National Policing Improvement Agency,22/10/2010,FM Costs,Resources Directorate,The Home Office,5100046086,45.46
Home Office,NPIA - National Policing Improvement Agency,22/10/2010,FM Costs,Resources Directorate,The Home Office,5100046086,728.86
Home Office,NPIA - National Policing Improvement Agency,22/10/2010,FM Costs,Resources Directorate,The Home Office,5100046086,12.76
Home Office,NPIA - National Policing Improvement Agency,22/10/2010,FM Costs,Resources Directorate,The Home Office,5100046086,"22,780.00"
Home Office,NPIA - National Policing Improvement Agency,22/10/2010,FM Costs,Resources Directorate,The Home Office,5100046086,398.65
Home Office,NPIA - National Policing Improvement Agency,22/10/2010,FM Costs,Resources Directorate,The Home Office,5100046086,802
Home Office,NPIA - National Policing Improvement Agency,22/10/2010,FM Costs,Resources Directorate,The Home Office,5100046086,14.03
Home Office,NPIA - National Policing Improvement Agency,22/10/2010,FM Costs,Resources Directorate,The Home Office,5100046086,224.94
Home Office,NPIA - National Policing Improvement Agency,22/10/2010,FM Costs,Resources Directorate,The Home Office,5100046086,3.94
Home Office,NPIA - National Policing Improvement Agency,22/10/2010,FM Costs,Resources Directorate,The Home Office,5100046086,"11,345.68"
Home Office,NPIA - National Policing Improvement Agency,22/10/2010,FM Costs,Resources Directorate,The Home Office,5100046086,198.55
Home Office,NPIA - National Policing Improvement Agency,22/10/2010,FM Costs,Resources Directorate,The Home Office,5100046086,385
Home Office,NPIA - National Policing Improvement Agency,22/10/2010,FM Costs,Resources Directorate,The Home Office,5100046086,6.74
Home Office,NPIA - National Policing Improvement Agency,22/10/2010,FM Costs,Resources Directorate,The Home Office,5100046086,108.06
Home Office,NPIA - National Policing Improvement Agency,22/10/2010,FM Costs,Resources Directorate,The Home Office,5100046086,1.89
Home Office,NPIA - National Policing Improvement Agency,22/10/2010,FM Costs,Resources Directorate,The Home Office,5100046086,"1,589.00"
Home Office,NPIA - National Policing Improvement Agency,22/10/2010,FM Costs,Resources Directorate,The Home Office,5100046086,27.81
Home Office,NPIA - National Policing Improvement Agency,22/10/2010,FM Costs,Resources Directorate,The Home Office,5100046086,40
Home Office,NPIA - National Policing Improvement Agency,22/10/2010,FM Costs,Resources Directorate,The Home Office,5100046086,0.7
Home Office,NPIA - National Policing Improvement Agency,22/10/2010,FM Costs,Resources Directorate,The Home Office,5100046086,55.53
Home Office,NPIA - National Policing Improvement Agency,22/10/2010,FM Costs,Resources Directorate,The Home Office,5100046086,0.97
Home Office,NPIA - National Policing Improvement Agency,22/10/2010,FM Costs,Resources Directorate,The Home Office,5100046086,861.52
Home Office,NPIA - National Policing Improvement Agency,22/10/2010,FM Costs,Resources Directorate,The Home Office,5100046086,15.08
Home Office,NPIA - National Policing Improvement Agency,22/10/2010,FM Costs,Resources Directorate,The Home Office,5100046086,"3,333.39"
Home Office,NPIA - National Policing Improvement Agency,22/10/2010,FM Costs,Resources Directorate,The Home Office,5100046086,58.33
Home Office,NPIA - National Policing Improvement Agency,22/10/2010,FM Costs,Resources Directorate,The Home Office,5100046086,"3,902.77"
Home Office,NPIA - National Policing Improvement Agency,22/10/2010,FM Costs,Resources Directorate,The Home Office,5100046086,68.3
Home Office,NPIA - National Policing Improvement Agency,22/10/2010,FM Costs,Resources Directorate,The Home Office,5100046086,"1,199.07"
Home Office,NPIA - National Policing Improvement Agency,22/10/2010,FM Costs,Resources Directorate,The Home Office,5100046086,20.98
Home Office,NPIA - National Policing Improvement Agency,22/10/2010,FM Costs,Resources Directorate,The Home Office,5100047581,"80,308.30"
Home Office,NPIA - National Policing Improvement Agency,22/10/2010,FM Costs,Resources Directorate,The Home Office,5100047581,"1,409.12"
Home Office,NPIA - National Policing Improvement Agency,22/10/2010,FM Costs,Resources Directorate,The Home Office,5100047581,"2,598.00"
Home Office,NPIA - National Policing Improvement Agency,22/10/2010,FM Costs,Resources Directorate,The Home Office,5100047581,45.46
Home Office,NPIA - National Policing Improvement Agency,22/10/2010,FM Costs,Resources Directorate,The Home Office,5100047581,728.86
Home Office,NPIA - National Policing Improvement Agency,22/10/2010,FM Costs,Resources Directorate,The Home Office,5100047581,12.76
Home Office,NPIA - National Policing Improvement Agency,22/10/2010,FM Costs,Resources Directorate,The Home Office,5100047581,"22,780.00"
Home Office,NPIA - National Policing Improvement Agency,22/10/2010,FM Costs,Resources Directorate,The Home Office,5100047581,398.65
Home Office,NPIA - National Policing Improvement Agency,22/10/2010,FM Costs,Resources Directorate,The Home Office,5100047581,802
Home Office,NPIA - National Policing Improvement Agency,22/10/2010,FM Costs,Resources Directorate,The Home Office,5100047581,14.03
Home Office,NPIA - National Policing Improvement Agency,22/10/2010,FM Costs,Resources Directorate,The Home Office,5100047581,224.94
Home Office,NPIA - National Policing Improvement Agency,22/10/2010,FM Costs,Resources Directorate,The Home Office,5100047581,3.94
Home Office,NPIA - National Policing Improvement Agency,22/10/2010,FM Costs,Resources Directorate,The Home Office,5100047581,"11,345.68"
Home Office,NPIA - National Policing Improvement Agency,22/10/2010,FM Costs,Resources Directorate,The Home Office,5100047581,198.55
Home Office,NPIA - National Policing Improvement Agency,22/10/2010,FM Costs,Resources Directorate,The Home Office,5100047581,385
Home Office,NPIA - National Policing Improvement Agency,22/10/2010,FM Costs,Resources Directorate,The Home Office,5100047581,6.74
Home Office,NPIA - National Policing Improvement Agency,22/10/2010,FM Costs,Resources Directorate,The Home Office,5100047581,108.06
Home Office,NPIA - National Policing Improvement Agency,22/10/2010,FM Costs,Resources Directorate,The Home Office,5100047581,1.89
Home Office,NPIA - National Policing Improvement Agency,22/10/2010,FM Costs,Resources Directorate,The Home Office,5100047581,"1,589.00"
Home Office,NPIA - National Policing Improvement Agency,22/10/2010,FM Costs,Resources Directorate,The Home Office,5100047581,27.81
Home Office,NPIA - National Policing Improvement Agency,22/10/2010,FM Costs,Resources Directorate,The Home Office,5100047581,40
Home Office,NPIA - National Policing Improvement Agency,22/10/2010,FM Costs,Resources Directorate,The Home Office,5100047581,0.7
Home Office,NPIA - National Policing Improvement Agency,22/10/2010,FM Costs,Resources Directorate,The Home Office,5100047581,55.53
Home Office,NPIA - National Policing Improvement Agency,22/10/2010,FM Costs,Resources Directorate,The Home Office,5100047581,0.97
Home Office,NPIA - National Policing Improvement Agency,22/10/2010,FM Costs,Resources Directorate,The Home Office,5100047581,861.52
Home Office,NPIA - National Policing Improvement Agency,22/10/2010,FM Costs,Resources Directorate,The Home Office,5100047581,15.08
Home Office,NPIA - National Policing Improvement Agency,22/10/2010,FM Costs,Resources Directorate,The Home Office,5100047581,"3,333.39"
Home Office,NPIA - National Policing Improvement Agency,22/10/2010,FM Costs,Resources Directorate,The Home Office,5100047581,58.33
Home Office,NPIA - National Policing Improvement Agency,22/10/2010,FM Costs,Resources Directorate,The Home Office,5100047581,"3,902.77"
Home Office,NPIA - National Policing Improvement Agency,22/10/2010,FM Costs,Resources Directorate,The Home Office,5100047581,68.3
Home Office,NPIA - National Policing Improvement Agency,22/10/2010,FM Costs,Resources Directorate,The Home Office,5100047581,"1,199.07"
Home Office,NPIA - National Policing Improvement Agency,22/10/2010,FM Costs,Resources Directorate,The Home Office,5100047581,20.98
Home Office,NPIA - National Policing Improvement Agency,22/10/2010,Land and Buildings maintenance,Resources Directorate,GallifordTry Construction Ltd,1900057782,"142,612.63"
Home Office,SIA - Security Industry Authority,06/10/2010,Licensing Costs,Licensing,BT Syntegra,CSYN01,"1,022,200.36"
Home Office,SIA - Security Industry Authority,13/10/2010,CRB Disclosures,Licensing,CRB,CCRB01,"215,108.00"
Home Office,SIA - Security Industry Authority,06/10/2010,Rental ,Office services ,IPCC,CIPC01,"73,984.00"
Home Office,SOCA - Serious Organised Crime Agency,23/09/2010,Office and General Expenses,Central & Hosted Services,SEVEN SQUARED LTD,52370," 28,554.85 "
Home Office,SOCA - Serious Organised Crime Agency,14/10/2010,Professional Services and Fees,Central & Hosted Services,CROWN SOLICITORS OFFICE (FEES),54351," 51,152.00 "
Home Office,SOCA - Serious Organised Crime Agency,20/10/2010,Professional Services and Fees,Central & Hosted Services,CROWN SOLICITORS OFF,54958," 58,750.00 "
Home Office,SOCA - Serious Organised Crime Agency,20/10/2010,Salaries and Allowances -permanently employed,Central & Hosted Services,ADECCO ALFRED MARKS,54970," 4,872.76 "
Home Office,SOCA - Serious Organised Crime Agency,21/10/2010,"Accommodation, Subsistence & General Expenses",Central & Hosted Services,BARCLAYCARD,54995, 56.69 
Home Office,SOCA - Serious Organised Crime Agency,20/10/2010,Salaries and Allowances -permanently employed,CEOP,ADECCO ALFRED MARKS,54970," 30,751.05 "
Home Office,SOCA - Serious Organised Crime Agency,21/10/2010,"Accommodation, Subsistence & General Expenses",CEOP,BARCLAYCARD,54995," 6,982.13 "
Home Office,SOCA - Serious Organised Crime Agency,21/10/2010,PFI Contract Charges,CEOP,SERCO,55018," 30,768.95 "
Home Office,SOCA - Serious Organised Crime Agency,21/10/2010,"Accommodation, Subsistence & General Expenses",Corp Finance,BARCLAYCARD,54995, 32.99 
Home Office,SOCA - Serious Organised Crime Agency,22/09/2010,PFI Contract Charges,Corporate Services,SERCO,52270," 126,322.22 "
Home Office,SOCA - Serious Organised Crime Agency,22/09/2010,PFI Contract Charges,Corporate Services,SERCO,52274," 45,956.60 "
Home Office,SOCA - Serious Organised Crime Agency,29/09/2010,Salaries and Allowances -permanently employed,Corporate Services,CAPITA BUSINESS SERVICES LTD,52868," 45,825.00 "
Home Office,SOCA - Serious Organised Crime Agency,29/09/2010,Office and General Expenses,Corporate Services,OFFICE DEPOT UK LTD,52875," 37,612.36 "
Home Office,SOCA - Serious Organised Crime Agency,30/09/2010,Operational and Communications Costs,Corporate Services,REVENUE FINANCE BANKING SERVIC,53072," 34,562.65 "
Home Office,SOCA - Serious Organised Crime Agency,30/09/2010,Operational and Communications Costs,Corporate Services,REVENUE FINANCE BANKING SERVIC,53075," 76,116.38 "
Home Office,SOCA - Serious Organised Crime Agency,30/09/2010,Operational and Communications Costs,Corporate Services,REVENUE FINANCE BANKING SERVIC,53076," 34,562.65 "
Home Office,SOCA - Serious Organised Crime Agency,30/09/2010,Operational and Communications Costs,Corporate Services,REVENUE FINANCE BANKING SERVIC,53078," 76,116.38 "
Home Office,SOCA - Serious Organised Crime Agency,01/10/2010,Indirect Employee Costs,Corporate Services,NPIA,53146," 30,132.00 "
Home Office,SOCA - Serious Organised Crime Agency,04/10/2010,Premises,Corporate Services,KIER BUILDING SERVICES,53270," 119,829.92 "
Home Office,SOCA - Serious Organised Crime Agency,06/10/2010,IT Expenses,Corporate Services,L-3 COMMUNICATIONS ASA LTD,53489," 220,312.50 "
Home Office,SOCA - Serious Organised Crime Agency,06/10/2010,IT Expenses,Corporate Services,L-3 COMMUNICATIONS ASA LTD,53492," 28,252.88 "
Home Office,SOCA - Serious Organised Crime Agency,06/10/2010,PFI Contract Charges,Corporate Services,SERCO,53496," 38,027.29 "
Home Office,SOCA - Serious Organised Crime Agency,06/10/2010,IT Expenses,Corporate Services,SERCO,53497," 100,826.30 "
Home Office,SOCA - Serious Organised Crime Agency,06/10/2010,IT Expenses,Corporate Services,SERCO,53498," 101,756.35 "
Home Office,SOCA - Serious Organised Crime Agency,06/10/2010,IT Expenses,Corporate Services,FCO SERVICES,53510," 1,057,469.46 "
Home Office,SOCA - Serious Organised Crime Agency,08/10/2010,IT Expenses,Corporate Services,CAPITA BUSINESS SERVICES LTD,53709," 28,687.62 "
Home Office,SOCA - Serious Organised Crime Agency,11/10/2010,Professional Services and Fees,Corporate Services,LA INT'L COMPUTER CONSULTANTS,53915," 28,667.65 "
Home Office,SOCA - Serious Organised Crime Agency,14/10/2010,Premises,Corporate Services,OCS GROUP UK LTD ,54426," 173,749.93 "
Home Office,SOCA - Serious Organised Crime Agency,14/10/2010,Premises,Corporate Services,VALUATION OFFICE AGENCY,54417," 166,858.87 "
Home Office,SOCA - Serious Organised Crime Agency,14/10/2010,Premises,Corporate Services,VALUATION OFFICE AGENCY,54424," 369,109.61 "
Home Office,SOCA - Serious Organised Crime Agency,14/10/2010,IT Expenses,Corporate Services,CAPITA BUSINESS SERVICES LTD,54427," 454,921.27 "
Home Office,SOCA - Serious Organised Crime Agency,14/10/2010,IT Expenses,Corporate Services,CAPITA BUSINESS SERVICES LTD,54429," 66,345.20 "
Home Office,SOCA - Serious Organised Crime Agency,14/10/2010,IT Expenses,Corporate Services,SERCO,54438," 166,361.08 "
Home Office,SOCA - Serious Organised Crime Agency,14/10/2010,Professional Services and Fees,Corporate Services,ELAN COMPUTING LTD,54487, 415.38 
Home Office,SOCA - Serious Organised Crime Agency,14/10/2010,Salaries and Allowances -permanently employed,Corporate Services,ELAN COMPUTING LTD,54487," 33,175.58 "
Home Office,SOCA - Serious Organised Crime Agency,14/10/2010,Professional Services and Fees,Corporate Services,ELAN COMPUTING LTD,54487, 65.99 
Home Office,SOCA - Serious Organised Crime Agency,14/10/2010,Salaries and Allowances -permanently employed,Corporate Services,ELAN COMPUTING LTD,54487," 20,271.24 "
Home Office,SOCA - Serious Organised Crime Agency,18/10/2010,Premises,Corporate Services,KIER BUILDING SERVICES,54592," 54,492.55 "
Home Office,SOCA - Serious Organised Crime Agency,20/10/2010,Salaries and Allowances -permanently employed,Corporate Services,ADECCO ALFRED MARKS,54970," 43,574.83 "
Home Office,SOCA - Serious Organised Crime Agency,21/10/2010,IT Expenses,Corporate Services,SERCO,54991," 99,743.85 "
Home Office,SOCA - Serious Organised Crime Agency,21/10/2010,"Accommodation, Subsistence & General Expenses",Corporate Services,BARCLAYCARD,54995," 7,616.19 "
Home Office,SOCA - Serious Organised Crime Agency,21/10/2010,IT Expenses,Corporate Services,SERCO,55018," 8,124.19 "
Home Office,SOCA - Serious Organised Crime Agency,21/10/2010,PFI Contract Charges,Corporate Services,SERCO,55018," 1,554,414.54 "
Home Office,SOCA - Serious Organised Crime Agency,21/10/2010,PFI Contract Charges,Corporate Services,SERCO,55041," 89,300.00 "
Home Office,SOCA - Serious Organised Crime Agency,21/10/2010,Indirect Employee Costs,Corporate Services,ELIESHA TRAINING LTD,55083," 28,406.21 "
Home Office,SOCA - Serious Organised Crime Agency,21/10/2010,IT Expenses,Corporate Services,CABLE & WIRELESS COMMS.,55098," 78,241.53 "
Home Office,SOCA - Serious Organised Crime Agency,08/10/2010,Salaries and Allowances -Seconded Officers,Enforcement,SOUTH YORKSHIRE POLICE AUTH.,53731," 28,287.26 "
Home Office,SOCA - Serious Organised Crime Agency,08/10/2010,Salaries and Allowances -permanently employed,Enforcement,SOUTH YORKSHIRE POLICE AUTH.,53731, 148.59 
Home Office,SOCA - Serious Organised Crime Agency,20/10/2010,Salaries and Allowances -permanently employed,Enforcement,ADECCO ALFRED MARKS,54970," 21,401.52 "
Home Office,SOCA - Serious Organised Crime Agency,21/10/2010,"Accommodation, Subsistence & General Expenses",Enforcement,BARCLAYCARD,54995," 34,129.93 "
Home Office,SOCA - Serious Organised Crime Agency,21/10/2010,PFI Contract Charges,Enforcement,SERCO,55018," 4,154.22 "
Home Office,SOCA - Serious Organised Crime Agency,12/10/2010,IT Expenses,Intelligence,SKY BUSINESS DIVISION,54014," 40,345.18 "
Home Office,SOCA - Serious Organised Crime Agency,14/10/2010,Salaries and Allowances -permanently employed,Intelligence,ELAN COMPUTING LTD,54487," 6,224.55 "
Home Office,SOCA - Serious Organised Crime Agency,20/10/2010,Salaries and Allowances -permanently employed,Intelligence,ADECCO ALFRED MARKS,54970," 5,400.00 "
Home Office,SOCA - Serious Organised Crime Agency,21/10/2010,"Accommodation, Subsistence & General Expenses",Intelligence,BARCLAYCARD,54995," 28,034.67 "
Home Office,SOCA - Serious Organised Crime Agency,12/10/2010,"Accommodation, Subsistence & General Expenses",Intervention,REVENUE FINANCE BANKING SERVIC,53987, 333.00 
Home Office,SOCA - Serious Organised Crime Agency,12/10/2010,Salaries and Allowances -Seconded Officers,Intervention,REVENUE FINANCE BANKING SERVIC,53987," 112,356.04 "
Home Office,SOCA - Serious Organised Crime Agency,20/10/2010,Salaries and Allowances -permanently employed,Intervention,ADECCO ALFRED MARKS,54970," 82,735.70 "
Home Office,SOCA - Serious Organised Crime Agency,21/10/2010,"Accommodation, Subsistence & General Expenses",Intervention,BARCLAYCARD,54995," 60,814.69 "
Home Office,SOCA - Serious Organised Crime Agency,22/09/2010,Property Plant & Equipment,Investment Board,HERMAN MILLER LTD,52269," 41,936.93 "
Home Office,SOCA - Serious Organised Crime Agency,23/09/2010,IT Expenses,Investment Board,FCO SERVICES,52336," 101,050.00 "
Home Office,SOCA - Serious Organised Crime Agency,23/09/2010,IT Expenses,Investment Board,FCO SERVICES,52379," 101,050.00 "
Home Office,SOCA - Serious Organised Crime Agency,29/09/2010,Intangibles non-current assets,Investment Board,CAPITA BUSINESS SERVICES LTD,52829," 30,671.03 "
Home Office,SOCA - Serious Organised Crime Agency,04/10/2010,Intangibles non-current assets,Investment Board,CAPITA BUSINESS SERVICES LTD,53294," 30,671.03 "
Home Office,SOCA - Serious Organised Crime Agency,06/10/2010,Professional Services and Fees,Investment Board,DELOITTE MCS,53547," 52,438.93 "
Home Office,SOCA - Serious Organised Crime Agency,07/10/2010,Professional Services and Fees,Investment Board,FIELD FISHER WATERHOUSE LLP,53648," 26,603.16 "
Home Office,SOCA - Serious Organised Crime Agency,08/10/2010,Property Plant & Equipment,Investment Board,CAPITA BUSINESS SERVICES LTD,53716," 80,290.10 "
Home Office,SOCA - Serious Organised Crime Agency,08/10/2010,Property Plant & Equipment,Investment Board,CAPITA BUSINESS SERVICES LTD,53718," 32,550.20 "
Home Office,SOCA - Serious Organised Crime Agency,08/10/2010,Property Plant & Equipment,Investment Board,WATES INTERIORS LTD,53800," 653,300.00 "
Home Office,SOCA - Serious Organised Crime Agency,12/10/2010,Intangibles non-current assets,Investment Board,SAPPHIRE TECHNOLOGIES LTD,54032," 25,673.75 "
Home Office,SOCA - Serious Organised Crime Agency,14/10/2010,Property Plant & Equipment,Investment Board,DRIVERS JONAS DELOITTE,54296," 76,053.64 "
Home Office,SOCA - Serious Organised Crime Agency,14/10/2010,PFI Contract Charges,Investment Board,SERCO,54435," 41,309.29 "
Home Office,SOCA - Serious Organised Crime Agency,14/10/2010,PFI Contract Charges,Investment Board,SERCO,54439," 90,156.33 "
Home Office,SOCA - Serious Organised Crime Agency,14/10/2010,PFI Contract Charges,Investment Board,SERCO,54440," 149,480.72 "
Home Office,SOCA - Serious Organised Crime Agency,14/10/2010,Salaries and Allowances -permanently employed,Investment Board,ELAN COMPUTING LTD,54487," 14,105.21 "
Home Office,SOCA - Serious Organised Crime Agency,14/10/2010,Salaries and Allowances -permanently employed,Investment Board,ELAN COMPUTING LTD,54487," 8,684.96 "
Home Office,SOCA - Serious Organised Crime Agency,20/10/2010,Salaries and Allowances -permanently employed,Investment Board,ADECCO ALFRED MARKS,54970," 16,931.22 "
Home Office,SOCA - Serious Organised Crime Agency,21/10/2010,"Accommodation, Subsistence & General Expenses",Investment Board,BARCLAYCARD,54995, 871.07 
Home Office,SOCA - Serious Organised Crime Agency,21/10/2010,IT Expenses,Investment Board,SERCO,55018," 9,584.03 "
Home Office,SOCA - Serious Organised Crime Agency,21/10/2010,Intangibles non-current assets,Investment Board,SERCO,55018, 722.30 
Home Office,SOCA - Serious Organised Crime Agency,21/10/2010,PFI Contract Charges,Investment Board,SERCO,55018," 129,863.05 "
Home Office,SOCA - Serious Organised Crime Agency,21/10/2010,Property Plant & Equipment,Investment Board,SERCO,55018, 935.25 
Home Office,SOCA - Serious Organised Crime Agency,23/09/2010,IT Expenses,Projects,FCO SERVICES,52334," 29,723.59 "
Home Office,SOCA - Serious Organised Crime Agency,23/09/2010,IT Expenses,Projects,FCO SERVICES,52380," 29,723.59 "
Home Office,SOCA - Serious Organised Crime Agency,23/09/2010,Intangibles non-current assets,Projects,LOGICA UK LTD,52385," 76,409.08 "
Home Office,SOCA - Serious Organised Crime Agency,04/10/2010,Professional Services and Fees,Projects,BDO STOY HAYWARD,53249," 51,324.24 "
Home Office,SOCA - Serious Organised Crime Agency,06/10/2010,IT Expenses,Projects,L-3 COMMUNICATIONS ASA LTD,53479," 34,691.45 "
Home Office,SOCA - Serious Organised Crime Agency,08/10/2010,Property Plant & Equipment,Projects,CAPITA BUSINESS SERVICES LTD,53707," 27,025.00 "
Home Office,SOCA - Serious Organised Crime Agency,20/10/2010,IT Expenses,Projects,FCO SERVICES,54908," 38,006.44 "
Home Office,SOCA - Serious Organised Crime Agency,21/10/2010,"Accommodation, Subsistence & General Expenses",Projects,BARCLAYCARD,54995," 7,024.03 "
Home Office,UKBA - UK Borders Agency,09/09/2010,"Transport, Storage & Mail Serv.Mailing, Mail Delivery Service",UKBA - UK Borders Agency,GOVERNMENT CAR AND DESPATCH AGENCY (GCDA),1833263,"31,405.63"
Home Office,UKBA - UK Borders Agency,30/09/2010,OGD RFT,UKBA - UK Borders Agency,OSAG - OFFICE OF THE ADVOCATE GENERAL,1846803,"42,002.16"
Home Office,UKBA - UK Borders Agency,01/10/2010,Professional & Admin Services.Visa Processing Services,UKBA - UK Borders Agency,VF WORLDWIDE HOLDINGS LTD,1808039,"4,422,900.55"
Home Office,UKBA - UK Borders Agency,01/10/2010,Grant,UKBA - UK Borders Agency,EAST OF ENGLAND REGIONAL ASSEMBLY,536356,"25,699.50"
Home Office,UKBA - UK Borders Agency,01/10/2010,Grant,UKBA - UK Borders Agency,EAST MIDLANDS REGIONAL LOCAL GOVER,536356,"30,372.00"
Home Office,UKBA - UK Borders Agency,01/10/2010,Grant,UKBA - UK Borders Agency,WEST MIDLANDS LOCAL GOVERNMENT ASS,536356,"39,717.25"
Home Office,UKBA - UK Borders Agency,01/10/2010,Grant,UKBA - UK Borders Agency,BOLTON MBC 1 (G),INV100265884600009798-1,"45,630.75"
Home Office,UKBA - UK Borders Agency,01/10/2010,Grant,UKBA - UK Borders Agency,HULL CITY COUNCIL (G),INV1000127011,"48,790.00"
Home Office,UKBA - UK Borders Agency,01/10/2010,Grant,UKBA - UK Borders Agency,BOLTON MBC 1 (G),INV100265884600009797,"49,779.00"
Home Office,UKBA - UK Borders Agency,01/10/2010,Grant,UKBA - UK Borders Agency,BOLTON MBC 1 (G),INV100265884600009797-1,"49,779.00"
Home Office,UKBA - UK Borders Agency,01/10/2010,Grant,UKBA - UK Borders Agency,MANCHESTER CITY COUNCIL 2 (G),INV8500254455,"163,230.50"
Home Office,UKBA - UK Borders Agency,04/10/2010,Politics & Civic Affairs.Human aid & relief Sect 4,UKBA - UK Borders Agency,LEEDS CITY COUNCIL,1819081,"876,222.40"
Home Office,UKBA - UK Borders Agency,04/10/2010,Politics & Civic Affairs.Human aid & relief Sect 4,UKBA - UK Borders Agency,METROPOLITAN SUPPORT TRUST (EAST MIDLANDS),1819870,"345,652.77"
Home Office,UKBA - UK Borders Agency,04/10/2010,Storage & Mail Services.Messenger & Reception Services,UKBA - UK Borders Agency,SIEMENS BUSINESS SERVICES LTD,1803449,"75,312.37"
Home Office,UKBA - UK Borders Agency,04/10/2010,Politics & Civic Affairs.REFUGEE PROG. SECT 95,UKBA - UK Borders Agency,CITY AND COUNTY OF SWANSEA,1819011,"67,887.75"
Home Office,UKBA - UK Borders Agency,04/10/2010,Storage & Mail Services.Messenger & Reception Services,UKBA - UK Borders Agency,"REFUGEE ACTION ( REGIONS - NW, SE & SW )",1816369,"36,251.84"
Home Office,UKBA - UK Borders Agency,04/10/2010,"Vehicles, Ships, Airplanes.Vehicle Maint Equip (FA)- PROG",UKBA - UK Borders Agency,FR AVIATION LTD,1819771,"86,114.28"
Home Office,UKBA - UK Borders Agency,04/10/2010,"IT, Broadcasting & Telecomms.IT Run Cost Info Support-PROG",UKBA - UK Borders Agency,FUJITSU SERVICES LTD,1819148,"29,947.22"
Home Office,UKBA - UK Borders Agency,04/10/2010,"Transport, Storage & Mail Serv.Fuel & Vehicle Supp Serv- PROG",UKBA - UK Borders Agency,INCHCAPE FLEET SOLUTIONS LTD,1819831,"91,183.18"
Home Office,UKBA - UK Borders Agency,04/10/2010,Management & Admin Serv.Temp IT N/w Specialists - ADMN,UKBA - UK Borders Agency,LONDON BOROUGH OF CAMDEN,1809796,"46,704.10"
Home Office,UKBA - UK Borders Agency,04/10/2010,"Transport, Storage & Mail Serv.Mailing, Mail Delivery Service",UKBA - UK Borders Agency,FRANCOTYP-POSTALIA LIMITED,1819045,"40,000.00"
Home Office,UKBA - UK Borders Agency,04/10/2010,Asylum Services.Public Expense Removals,UKBA - UK Borders Agency,CARLSON WAGONLIT TRAVEL,1819826,"166,696.88"
Home Office,UKBA - UK Borders Agency,04/10/2010,Defense & Law Enforcement.Police Liaison Officers,UKBA - UK Borders Agency,SOUTH YORKSHIRE POLICE,1806838,"73,213.68"
Home Office,UKBA - UK Borders Agency,04/10/2010,Defense & Law Enforcement.Police Liaison Officers,UKBA - UK Borders Agency,NOTTINGHAMSHIRE POLICE AUTHORITY 1,1813680,"30,232.62"
Home Office,UKBA - UK Borders Agency,04/10/2010,Professional & Admin Services.Business admin services,UKBA - UK Borders Agency,DRIVER AND VEHICLE LICENSING AGENCY (DVLA),1830201,"66,969.83"
Home Office,UKBA - UK Borders Agency,04/10/2010,Professional & Admin Services.Business admin services,UKBA - UK Borders Agency,DRIVER AND VEHICLE LICENSING AGENCY (DVLA),1830212,"64,130.00"
Home Office,UKBA - UK Borders Agency,04/10/2010,Professional & Admin Services.Business admin services,UKBA - UK Borders Agency,DRIVER AND VEHICLE LICENSING AGENCY (DVLA),1830219,"46,823.34"
Home Office,UKBA - UK Borders Agency,05/10/2010,Politics & Civic Affairs.Human aid & relief Sect 4,UKBA - UK Borders Agency,YMCA GLASGOW,1820849,"453,296.62"
Home Office,UKBA - UK Borders Agency,05/10/2010,Asylum Provision.Asylum serv Sect4Vouchers,UKBA - UK Borders Agency,SODEXHO PASS LTD,1820789,"289,479.13"
Home Office,UKBA - UK Borders Agency,05/10/2010,Politics & Civic Affairs.Human aid & relief Sect 4,UKBA - UK Borders Agency,LIVERPOOL CITY COUNCIL,1819158,"229,942.37"
Home Office,UKBA - UK Borders Agency,05/10/2010,Storage & Mail Services.Messenger & Reception Services,UKBA - UK Borders Agency,"REFUGEE ACTION ( REGIONS - NW, SE & SW )",1816365,"56,069.65"
Home Office,UKBA - UK Borders Agency,05/10/2010,Politics & Civic Affairs.Human aid & relief Sect 4,UKBA - UK Borders Agency,PRIORITY PROPERTIES NORTH WEST,1819984,"28,389.40"
Home Office,UKBA - UK Borders Agency,05/10/2010,"Public Order, Security Service.Detention Services Contracts",UKBA - UK Borders Agency,THE GEO GROUP UK LTD,1820182,"1,184,718.43"
Home Office,UKBA - UK Borders Agency,05/10/2010,"Public Order, Security Service.Detention Services Contracts",UKBA - UK Borders Agency,THE GEO GROUP UK LTD,1820837,"584,180.16"
Home Office,UKBA - UK Borders Agency,05/10/2010,"Public Order, Security Service.Detention Services Contracts",UKBA - UK Borders Agency,THE GEO GROUP UK LTD,1820824,"129,971.86"
Home Office,UKBA - UK Borders Agency,05/10/2010,"Public Order, Security, Safety.Domestic Escort Services",UKBA - UK Borders Agency,G4S CARE & JUSTICE SERVICES (UK) LTD,1804571,"54,254.80"
Home Office,UKBA - UK Borders Agency,05/10/2010,"Public Order, Security, Safety.Domestic Escort Services",UKBA - UK Borders Agency,G4S CARE & JUSTICE SERVICES (UK) LTD,1804570,"27,728.84"
Home Office,UKBA - UK Borders Agency,05/10/2010,"Science, Technical & Research.Computer services - PROG",UKBA - UK Borders Agency,ATOS ORIGIN IT SERVICES UK LIMITED- MEDICAL SERVICES,1748850,"57,255.40"
Home Office,UKBA - UK Borders Agency,05/10/2010,Asylum Services.Public Expense Removals,UKBA - UK Borders Agency,CARLSON WAGONLIT TRAVEL,1819951,"191,574.94"
Home Office,UKBA - UK Borders Agency,05/10/2010,OGD RFT,UKBA - UK Borders Agency,TREASURY SOLICITOR CLIENT MONIES,1826863,"52,764.10"
Home Office,UKBA - UK Borders Agency,06/10/2010,Politics & Civic Affairs.Displaced pers.assistance,UKBA - UK Borders Agency,SODEXHO PASS LTD,1821315,"983,683.03"
Home Office,UKBA - UK Borders Agency,06/10/2010,Asylum Provision.Asylum Cont Out Serv,UKBA - UK Borders Agency,LEEDS CITY COUNCIL,1820993,"55,085.00"
Home Office,UKBA - UK Borders Agency,06/10/2010,"IT, Broadcasting & Telecomms.IT Run Cost Info Support-PROG",UKBA - UK Borders Agency,ATOS ORIGIN IT SERVICES UK LIMITED- MEDICAL SERVICES,1813209,"379,878.68"
Home Office,UKBA - UK Borders Agency,06/10/2010,"Transport, Storage & Mail Serv.Vehicle Hire Rent & Lease-PROG",UKBA - UK Borders Agency,TNT UK LIMITED,1822021,"261,563.03"
Home Office,UKBA - UK Borders Agency,06/10/2010,"IT, Broadcasting & Telecomms.IT Run Cost Info Support-PROG",UKBA - UK Borders Agency,ATOS ORIGIN IT SERVICES UK LIMITED- MEDICAL SERVICES,1818240,"173,042.25"
Home Office,UKBA - UK Borders Agency,06/10/2010,"IT, Broadcasting & Telecomms.IT Run Cost Info Support-PROG",UKBA - UK Borders Agency,ATOS ORIGIN IT SERVICES UK LIMITED- MEDICAL SERVICES,1818244,"115,361.50"
Home Office,UKBA - UK Borders Agency,06/10/2010,"IT, Broadcasting & Telecomms.IT Run Cost Info Support-PROG",UKBA - UK Borders Agency,ATOS ORIGIN IT SERVICES UK LIMITED- MEDICAL SERVICES,1813207,"72,427.00"
Home Office,UKBA - UK Borders Agency,06/10/2010,Law Enforcement & safety Equip.Maint&Rep of Plant&Mach�PROG,UKBA - UK Borders Agency,SAIC LIMITED,1815611,"69,094.70"
Home Office,UKBA - UK Borders Agency,06/10/2010,Law Enforcement & safety Equip.Security & Control Equip- PROG,UKBA - UK Borders Agency,RAPISCAN SYSTEMS LTD,1758071,"27,332.65"
Home Office,UKBA - UK Borders Agency,06/10/2010,Asylum Services.Public Expense Removals,UKBA - UK Borders Agency,CARLSON WAGONLIT TRAVEL,1819956,"83,179.95"
Home Office,UKBA - UK Borders Agency,06/10/2010,Asylum Services.Public Expense Removals,UKBA - UK Borders Agency,CARLSON WAGONLIT TRAVEL,1822022,"67,123.96"
Home Office,UKBA - UK Borders Agency,06/10/2010,Grant,UKBA - UK Borders Agency,LEICESTERSHIRE COUNTY COUNCIL 1 (G,537024,"56,528.57"
Home Office,UKBA - UK Borders Agency,06/10/2010,Grant,UKBA - UK Borders Agency,LONDON BOROUGH OF BARKING & DAGENH,531662,"62,957.14"
Home Office,UKBA - UK Borders Agency,06/10/2010,Grant,UKBA - UK Borders Agency,NEWCASTLE CITY COUNCIL (G),531662,"65,242.86"
Home Office,UKBA - UK Borders Agency,06/10/2010,Grant,UKBA - UK Borders Agency,LONDON BOROUGH OF HARINGEY 1 (G),537024,"83,000.00"
Home Office,UKBA - UK Borders Agency,06/10/2010,Grant,UKBA - UK Borders Agency,KENT COUNTY COUNCIL 1 (G),536336,"502,871.43"
Home Office,UKBA - UK Borders Agency,06/10/2010,Grant,UKBA - UK Borders Agency,KENT COUNTY COUNCIL 1 (G),539738,"706,935.71"
Home Office,UKBA - UK Borders Agency,06/10/2010,Grant,UKBA - UK Borders Agency,LONDON BOROUGH TOWER HAMLETS (G),533088,"46,494.60"
Home Office,UKBA - UK Borders Agency,06/10/2010,Grant,UKBA - UK Borders Agency,BOLTON MBC 1 (G),533088,"47,287.20"
Home Office,UKBA - UK Borders Agency,06/10/2010,Grant,UKBA - UK Borders Agency,SWINDON BOROUGH COUNCIL (G),533088,"58,769.85"
Home Office,UKBA - UK Borders Agency,06/10/2010,Grant,UKBA - UK Borders Agency,BIRMINGHAM CITY COUNCIL (G),533088,"399,488.91"
Home Office,UKBA - UK Borders Agency,07/10/2010,Professional & Admin Services.Business admin services - PROG,UKBA - UK Borders Agency,ADVANTAGE TECHNICAL RESOURCING,1822110,"64,296.00"
Home Office,UKBA - UK Borders Agency,07/10/2010,Publishing & Media Design Serv.Print Engrave & Photocopy-PROG,UKBA - UK Borders Agency,3M SECURITY PRINTING & SYSTEMS LTD,1822474,"69,795.00"
Home Office,UKBA - UK Borders Agency,07/10/2010,"Transport, Storage & Mail Serv.Parking fees - PROG",UKBA - UK Borders Agency,BAA BUSINESS SUPPORT CENTRE LTD,1822025,"265,561.59"
Home Office,UKBA - UK Borders Agency,07/10/2010,"Transport, Storage & Mail Serv.Parking fees - PROG",UKBA - UK Borders Agency,BAA BUSINESS SUPPORT CENTRE LTD,1822027,"123,606.49"
Home Office,UKBA - UK Borders Agency,07/10/2010,Law Enforcement & safety Equip.Maint&Rep of Plant&Mach�PROG,UKBA - UK Borders Agency,MORPHO UK LTD,1818305,"37,517.43"
Home Office,UKBA - UK Borders Agency,07/10/2010,Law Enforcement & safety Equip.Maint&Rep of Plant&Mach�PROG,UKBA - UK Borders Agency,MORPHO UK LTD,1818303,"36,713.44"
Home Office,UKBA - UK Borders Agency,07/10/2010,Public Order.Jail or prison services,UKBA - UK Borders Agency,METROPOLITAN POLICE,1818127,"69,425.00"
Home Office,UKBA - UK Borders Agency,07/10/2010,Asylum Provision.Asylumserv AsylumSker Trv,UKBA - UK Borders Agency,NETWORK TICKETING LTD,1815267,"35,100.00"
Home Office,UKBA - UK Borders Agency,08/10/2010,Politics & Civic Affairs.Human aid & relief Sect 4,UKBA - UK Borders Agency,GLASGOW CITY COUNCIL,1824297,"746,724.48"
Home Office,UKBA - UK Borders Agency,08/10/2010,"Public Order, Security, Safety.Escorting services",UKBA - UK Borders Agency,G4S CARE & JUSTICE SERVICES (UK) LTD,1805572,"723,468.72"
Home Office,UKBA - UK Borders Agency,08/10/2010,"Public Order, Security, Safety.Escorting services",UKBA - UK Borders Agency,G4S CARE & JUSTICE SERVICES (UK) LTD,1805575,"277,149.38"
Home Office,UKBA - UK Borders Agency,08/10/2010,"Public Order, Security, Safety.Confinement Surveillance",UKBA - UK Borders Agency,G4S CARE & JUSTICE SERVICES (UK) LTD,1805405,"28,786.18"
Home Office,UKBA - UK Borders Agency,08/10/2010,Animal Material & Supplies.Detect Dogs-Kennel & Misc-PROG,UKBA - UK Borders Agency,WAGTAIL,1823616,"86,181.73"
Home Office,UKBA - UK Borders Agency,08/10/2010,Travel & Food & Lodging.Juxtaposed Oversea Trav�PROG,UKBA - UK Borders Agency,THE CHANNEL TUNNEL GROUP LTD,1819849,"63,548.00"
Home Office,UKBA - UK Borders Agency,08/10/2010,Law Enforcement & safety Equip.Maint&Rep of Plant&Mach�PROG,UKBA - UK Borders Agency,MORPHO UK LTD,1823579,"37,517.43"
Home Office,UKBA - UK Borders Agency,08/10/2010,Law Enforcement & safety Equip.Maint&Rep of Plant&Mach�PROG,UKBA - UK Borders Agency,MORPHO UK LTD,1823576,"36,713.44"
Home Office,UKBA - UK Borders Agency,08/10/2010,Asylum Services.Public Expense Removals,UKBA - UK Borders Agency,CARLSON WAGONLIT TRAVEL,1823688,"121,165.97"
Home Office,UKBA - UK Borders Agency,08/10/2010,Management & Admin Serv.Civil Liability Serv - PROG,UKBA - UK Borders Agency,METROPOLITAN POLICE AUTHORITY,1823732,"83,806.75"
Home Office,UKBA - UK Borders Agency,08/10/2010,Defense & Law Enforcement.Police Liaison Officers,UKBA - UK Borders Agency,STRATHCLYDE POLICE,1824309,"34,189.10"
Home Office,UKBA - UK Borders Agency,08/10/2010,IT & Telecommunications.IT & Telecommunications - PROG,UKBA - UK Borders Agency,FCO SERVICES,1828796,"53,172.10"
Home Office,UKBA - UK Borders Agency,08/10/2010,Grant,UKBA - UK Borders Agency,YORKSHIRE & HUMBERSIDE CONSORT (G),542774,"39,717.25"
Home Office,UKBA - UK Borders Agency,11/10/2010,Politics & Civic Affairs.Displaced pers.assistance,UKBA - UK Borders Agency,SODEXHO PASS LTD,1824305,"236,257.19"
Home Office,UKBA - UK Borders Agency,11/10/2010,Politics & Civic Affairs.Human aid & relief Sect 5,UKBA - UK Borders Agency,AGEF AFGHANISTAN,1823571,"109,200.00"
Home Office,UKBA - UK Borders Agency,11/10/2010,Asylum Provision.Asylum serv Sect4Vouchers,UKBA - UK Borders Agency,SODEXHO PASS LTD,1824298,"36,170.77"
Home Office,UKBA - UK Borders Agency,11/10/2010,"Public Order, Security, Safety.Escorting services",UKBA - UK Borders Agency,G4S CARE & JUSTICE SERVICES (UK) LTD,1808131,"78,059.12"
Home Office,UKBA - UK Borders Agency,11/10/2010,Financial & Insurance Services.Banking & Monetary Serv - PROG,UKBA - UK Borders Agency,STREAMLINE,1821192,"25,457.36"
Home Office,UKBA - UK Borders Agency,11/10/2010,Management & Admin Serv.Corp & Bus Org Structure- PROG,UKBA - UK Borders Agency,ALPINE RESOURCING LIMITED,1823509,"32,488.75"
Home Office,UKBA - UK Borders Agency,11/10/2010,Professional & Admin Services.Clerical & Admin Staff - PROG,UKBA - UK Borders Agency,PARITY RESOURCES LTD,1825590,"31,287.90"
Home Office,UKBA - UK Borders Agency,11/10/2010,Management & Admin Serv.Temp IT N/w Specialists - PROG,UKBA - UK Borders Agency,EMERGING TECHNOLOGY SERV LTD,1824683,"25,218.44"
Home Office,UKBA - UK Borders Agency,11/10/2010,Asylum Services.Public Expense Removals,UKBA - UK Borders Agency,CARLSON WAGONLIT TRAVEL,1824201,"192,250.00"
Home Office,UKBA - UK Borders Agency,11/10/2010,Asylum Services.Public Expense Removals,UKBA - UK Borders Agency,CARLSON WAGONLIT TRAVEL,1824645,"113,810.57"
Home Office,UKBA - UK Borders Agency,11/10/2010,Defense & Law Enforcement.Police Liaison Officers,UKBA - UK Borders Agency,GREATER MANCHESTER POLICE,1824485,"28,567.42"
Home Office,UKBA - UK Borders Agency,11/10/2010,"Transport, Storage & Mail Serv.Mailing Mail Del Serv - PROG",UKBA - UK Borders Agency,GOVERNMENT CAR AND DESPATCH AGENCY (GCDA),1833252,"31,405.63"
Home Office,UKBA - UK Borders Agency,11/10/2010,Grant,UKBA - UK Borders Agency,NORFOLK COUNTY COUNCIL 1 (G),INV1182306,"26,269.53"
Home Office,UKBA - UK Borders Agency,11/10/2010,Grant,UKBA - UK Borders Agency,DEPARTMENT OF WORK & PENSIONS (G),INV2813909,"43,220.00"
Home Office,UKBA - UK Borders Agency,11/10/2010,Grant,UKBA - UK Borders Agency,DEPARTMENT OF WORK & PENSIONS (G),INV2813873,"167,880.00"
Home Office,UKBA - UK Borders Agency,11/10/2010,Grant,UKBA - UK Borders Agency,NORFOLK COUNTY COUNCIL 1 (G),INV1182299,"367,460.09"
Home Office,UKBA - UK Borders Agency,11/10/2010,Grant,UKBA - UK Borders Agency,COSLA (G),548282,"35,000.00"
Home Office,UKBA - UK Borders Agency,11/10/2010,Grant,UKBA - UK Borders Agency,SCOTTISH REFUGEE COUNCIL (G),548518,"33,664.00"
Home Office,UKBA - UK Borders Agency,11/10/2010,Grant,UKBA - UK Borders Agency,REFUGEE COUNCIL 1 (G),548554,"302,637.75"
Home Office,UKBA - UK Borders Agency,12/10/2010,IT & Telecoms Components.Computer Equip (FA),UKBA - UK Borders Agency,IBM DIRECT UNITED KINGDOM LTD,1820154,"1,455,420.80"
Home Office,UKBA - UK Borders Agency,12/10/2010,IT & Telecoms Components.Computer Equip (FA),UKBA - UK Borders Agency,SPECIALIST COMPUTER CENTRES PLC,1824172,"86,826.63"
Home Office,UKBA - UK Borders Agency,12/10/2010,"Public Order, Security, Safety.Domestic Escort Services",UKBA - UK Borders Agency,G4S CARE & JUSTICE SERVICES (UK) LTD,1798435,"75,194.09"
Home Office,UKBA - UK Borders Agency,12/10/2010,"Public Order, Security, Safety.Domestic Escort Services",UKBA - UK Borders Agency,G4S CARE & JUSTICE SERVICES (UK) LTD,1787898,"62,180.02"
Home Office,UKBA - UK Borders Agency,12/10/2010,"Public Order, Security, Safety.Security Guard Services - PROG",UKBA - UK Borders Agency,EAMUS CORK SOLUTIONS,1824437,"158,373.45"
Home Office,UKBA - UK Borders Agency,12/10/2010,Healthcare Services.Healthcare Services - ADMN,UKBA - UK Borders Agency,HEALTH MANAGEMENT LTD,1825915,"79,891.90"
Home Office,UKBA - UK Borders Agency,12/10/2010,Asylum Services.Public Expense Removals,UKBA - UK Borders Agency,CARLSON WAGONLIT TRAVEL,1825568,"114,285.52"
Home Office,UKBA - UK Borders Agency,12/10/2010,Asylum Services.Public Expense Removals,UKBA - UK Borders Agency,CARLSON WAGONLIT TRAVEL,1825566,"103,039.29"
Home Office,UKBA - UK Borders Agency,12/10/2010,Asylum Services.Public Expense Removals,UKBA - UK Borders Agency,CARLSON WAGONLIT TRAVEL,1825571,"55,406.35"
Home Office,UKBA - UK Borders Agency,12/10/2010,Defense & Law Enforcement.Police Liaison Officers,UKBA - UK Borders Agency,LEICESTERSHIRE CONSTABULARY,1826027,"30,131.52"
Home Office,UKBA - UK Borders Agency,12/10/2010,Storage & Mail Services.Messenger & Reception Services,UKBA - UK Borders Agency,NPIA (National Policing Improvement Agency),1825819,"3,407,500.00"
Home Office,UKBA - UK Borders Agency,12/10/2010,Grant,UKBA - UK Borders Agency,NEWCASTLE CITY COUNCIL (G),550198,"35,044.75"
Home Office,UKBA - UK Borders Agency,12/10/2010,Grant,UKBA - UK Borders Agency,MANCHESTER CITY COUNCIL 2 (G),550164,"39,717.25"
Home Office,UKBA - UK Borders Agency,13/10/2010,Politics & Civic Affairs.Displaced pers.assistance,UKBA - UK Borders Agency,SODEXHO PASS LTD,1827170,"1,000,261.84"
Home Office,UKBA - UK Borders Agency,13/10/2010,Asylum Provision.Asylum serv Sect4Vouchers,UKBA - UK Borders Agency,SODEXHO PASS LTD,1827202,"216,418.30"
Home Office,UKBA - UK Borders Agency,13/10/2010,Cleaning & Waste Disposal.Cleaning & Waste Disposal-PROG,UKBA - UK Borders Agency,NOVUS ENVIRONMENTAL,1827625,"25,344.09"
Home Office,UKBA - UK Borders Agency,13/10/2010,"Public Order, Security, Safety.Security Guard Services - PROG",UKBA - UK Borders Agency,OCS GROUP UK LTD,1822298,"150,559.57"
Home Office,UKBA - UK Borders Agency,13/10/2010,Asylum Services.Public Expense Removals,UKBA - UK Borders Agency,CARLSON WAGONLIT TRAVEL,1825621,"68,650.00"
Home Office,UKBA - UK Borders Agency,13/10/2010,Defense & Law Enforcement.Police Liaison Officers,UKBA - UK Borders Agency,WEST MIDLANDS POLICE,1827072,"31,640.16"
Home Office,UKBA - UK Borders Agency,13/10/2010,"IT, Broadcasting & Telecomms.Maintenance - PROG",UKBA - UK Borders Agency,FCO SERVICES,1830786,"1,268,931.34"
Home Office,UKBA - UK Borders Agency,13/10/2010,OGD RFT,UKBA - UK Borders Agency,TREASURY SOLICITORS OFFICE,1830974,"2,044,389.62"
Home Office,UKBA - UK Borders Agency,13/10/2010,OGD RFT,UKBA - UK Borders Agency,TREASURY SOLICITORS OFFICE,1833093,"36,618.88"
Home Office,UKBA - UK Borders Agency,13/10/2010,OGD RFT,UKBA - UK Borders Agency,TREASURY SOLICITORS OFFICE,1833098,"70,761.14"
Home Office,UKBA - UK Borders Agency,13/10/2010,Grant,UKBA - UK Borders Agency,ROYAL BOROUGH KINGSTON UPON THAMES,547872,"25,185.71"
Home Office,UKBA - UK Borders Agency,13/10/2010,Grant,UKBA - UK Borders Agency,LONDON BOROUGH OF HILLINGDON 1 (G),547872,"1,071,528.57"
Home Office,UKBA - UK Borders Agency,13/10/2010,Grant,UKBA - UK Borders Agency,DURHAM COUNTY COUNCIL 1 (G),547874,"27,480.18"
Home Office,UKBA - UK Borders Agency,13/10/2010,Grant,UKBA - UK Borders Agency,WESTMINSTER CITY COUNCIL (G),547874,"39,882.48"
Home Office,UKBA - UK Borders Agency,13/10/2010,Grant,UKBA - UK Borders Agency,DERBYSHIRE COUNTY COUNCIL 1 (G),547874,"42,140.55"
Home Office,UKBA - UK Borders Agency,13/10/2010,Grant,UKBA - UK Borders Agency,LONDON BOROUGH OF RICHMOND UPON TH,547862,"68,163.11"
Home Office,UKBA - UK Borders Agency,13/10/2010,Grant,UKBA - UK Borders Agency,NORFOLK COUNTY COUNCIL 1 (G),547874,"152,705.97"
Home Office,UKBA - UK Borders Agency,13/10/2010,Grant,UKBA - UK Borders Agency,LIVERPOOL CITY COUNCIL 1 (G),547862,"245,832.78"
Home Office,UKBA - UK Borders Agency,13/10/2010,Grant,UKBA - UK Borders Agency,LONDON BOROUGH OF CROYDON 1 (G),547874,"9,034,488.01"
Home Office,UKBA - UK Borders Agency,13/10/2010,Grant,UKBA - UK Borders Agency,MONMOUTHSHIRE COUNTY COUNCIL 1 (G),547874,"120,322.77"
Home Office,UKBA - UK Borders Agency,14/10/2010,IT & Telecoms Components.Computer Equip (FA),UKBA - UK Borders Agency,IBM DIRECT UNITED KINGDOM LTD,1826579,"1,410,606.30"
Home Office,UKBA - UK Borders Agency,14/10/2010,Professional & Admin Services.Corp Business IT Serv - PROG,UKBA - UK Borders Agency,SERCO  LTD,1810682,"288,105.30"
Home Office,UKBA - UK Borders Agency,14/10/2010,Professional & Admin Services.Corp Business IT Serv - PROG,UKBA - UK Borders Agency,SERCO  LTD,1810693,"242,784.38"
Home Office,UKBA - UK Borders Agency,14/10/2010,IT & Telecoms Components.Computer Equip (FA),UKBA - UK Borders Agency,IBM DIRECT UNITED KINGDOM LTD,1826551,"227,958.23"
Home Office,UKBA - UK Borders Agency,14/10/2010,Professional & Admin Services.Corp Business IT Serv - PROG,UKBA - UK Borders Agency,SERCO  LTD,1810686,"172,646.28"
Home Office,UKBA - UK Borders Agency,14/10/2010,Management & Admin Serv.Corp & Bus Org Structure- PROG,UKBA - UK Borders Agency,SERCO  LTD,1810691,"70,500.00"
Home Office,UKBA - UK Borders Agency,14/10/2010,Management & Admin Serv.Corp & Bus Org Structure- PROG,UKBA - UK Borders Agency,SERCO  LTD,1810688,"35,037.33"
Home Office,UKBA - UK Borders Agency,14/10/2010,Professional & Admin Services.Residential Rental - PROG,UKBA - UK Borders Agency,PRUDENTIAL PROP INV MANAGERS L,1827641,"1,145,823.07"
Home Office,UKBA - UK Borders Agency,14/10/2010,"Public Order, Security, Safety.Confinement Surveillance",UKBA - UK Borders Agency,SERCO  LTD,1811515,"89,019.10"
Home Office,UKBA - UK Borders Agency,14/10/2010,Storage & Mail Services.Messenger & Reception Services,UKBA - UK Borders Agency,MM TELEPERFORMANCE LTD T/A TELEPERFORMANCE,1823613,"41,609.10"
Home Office,UKBA - UK Borders Agency,14/10/2010,"Public Order, Security, Safety.Security Guard Services - PROG",UKBA - UK Borders Agency,BAA BUSINESS SUPPORT CENTRE LTD,1828585,"29,671.10"
Home Office,UKBA - UK Borders Agency,14/10/2010,Asylum Services.Public Expense Removals,UKBA - UK Borders Agency,CARLSON WAGONLIT TRAVEL,1827638,"132,244.97"
Home Office,UKBA - UK Borders Agency,14/10/2010,"Transport, Storage & Mail Serv.Parking fees - PROG",UKBA - UK Borders Agency,PRINCES DOCK DEVELOPMENT COMPANY NO 4 LTD,1823254,"29,072.44"
Home Office,UKBA - UK Borders Agency,15/10/2010,OGD RFT,UKBA - UK Borders Agency,OSAG - OFFICE OF THE ADVOCATE GENERAL,1837740,"111,381.78"
Home Office,UKBA - UK Borders Agency,15/10/2010,OGD RFT,UKBA - UK Borders Agency,TREASURY SOLICITOR CLIENT MONIES,1833136,"142,050.00"
Home Office,UKBA - UK Borders Agency,15/10/2010,OGD RFT,UKBA - UK Borders Agency,TREASURY SOLICITOR CLIENT MONIES,1834804,"166,350.00"
Home Office,UKBA - UK Borders Agency,15/10/2010,Grant,UKBA - UK Borders Agency,OISC (G),542806,"339,750.00"
Home Office,UKBA - UK Borders Agency,18/10/2010,"Public Order, Security, Safety.Confinement Surveillance",UKBA - UK Borders Agency,G4S CARE & JUSTICE SERVICES (UK) LTD,1814022,"26,722.26"
Home Office,UKBA - UK Borders Agency,18/10/2010,"Transport, Storage & Mail Serv.Document Storage Serv - ADMN",UKBA - UK Borders Agency,IRON MOUNTAIN (UK) LTD,1812539,"487,264.07"
Home Office,UKBA - UK Borders Agency,18/10/2010,Defense & Law Enforcement.Police Liaison Officers,UKBA - UK Borders Agency,DERBYSHIRE POLICE AUTHORITY,1829880,"27,010.56"
Home Office,UKBA - UK Borders Agency,18/10/2010,OGD RFT,UKBA - UK Borders Agency,TREASURY SOLICITOR CLIENT MONIES,1834810,"144,531.00"
Home Office,UKBA - UK Borders Agency,18/10/2010,Grant,UKBA - UK Borders Agency,GREATER LONDON AUTHORITY (G),554904,"79,434.40"
Home Office,UKBA - UK Borders Agency,19/10/2010,Politics & Civic Affairs.Displaced pers.assistance,UKBA - UK Borders Agency,SODEXHO PASS LTD,1830900,"996,633.09"
Home Office,UKBA - UK Borders Agency,19/10/2010,Politics & Civic Affairs.Human aid & relief Sect 4,UKBA - UK Borders Agency,NEWCASTLE CITY COUNCIL,1831023,"552,878.42"
Home Office,UKBA - UK Borders Agency,19/10/2010,"Hotel, Catering & Conference.Interpreters - ADMN",UKBA - UK Borders Agency,SPRAKAB (SKANDINNAVISK SPRAKANALYS AB),1705278,"56,838.00"
Home Office,UKBA - UK Borders Agency,19/10/2010,Travel & Food & Lodging.Hotels & motels & inns,UKBA - UK Borders Agency,TAMESIDE METROPOLITAN BOROUGH,1814657,"40,282.74"
Home Office,UKBA - UK Borders Agency,19/10/2010,Asylum Provision.Asylum Cont Out Serv,UKBA - UK Borders Agency,REFUGEE COUNCIL,1829905,"39,480.00"
Home Office,UKBA - UK Borders Agency,19/10/2010,Storage & Mail Services.Messenger & Reception Services,UKBA - UK Borders Agency,IDENTITY & PASSPORTS SERVICE,1830932,"36,919.62"
Home Office,UKBA - UK Borders Agency,19/10/2010,IT & Telecommunications.IT & Telecommunications - PROG,UKBA - UK Borders Agency,SPECIALIST COMPUTER CENTRES PLC,1829589,"192,232.35"
Home Office,UKBA - UK Borders Agency,19/10/2010,IT & Telecoms Components.Computer Equip (FA),UKBA - UK Borders Agency,SERCO  LTD,1814598,"87,941.64"
Home Office,UKBA - UK Borders Agency,19/10/2010,"Transport, Storage & Mail Serv.Mailing, Mail Delivery Service",UKBA - UK Borders Agency,FRANCOTYP-POSTALIA LIMITED,1830964,"40,000.00"
Home Office,UKBA - UK Borders Agency,19/10/2010,Defense & Law Enforcement.Police Liaison Officers,UKBA - UK Borders Agency,HUMBERSIDE POLICE AUTHORITY,1829571,"27,422.62"
Home Office,UKBA - UK Borders Agency,19/10/2010,Asylum Services.Public Expense Removals,UKBA - UK Borders Agency,CARLSON WAGONLIT TRAVEL,1829536,"25,650.90"
Home Office,UKBA - UK Borders Agency,19/10/2010,"IT, Broadcasting & Telecomms.IT Running Cost - Maint - PROG",UKBA - UK Borders Agency,COMPUTACENTER (UK) LTD,1830918,"98,611.88"
Home Office,UKBA - UK Borders Agency,19/10/2010,"IT, Broadcasting & Telecomms.Computer Equip & Access - PROG",UKBA - UK Borders Agency,SPECIALIST COMPUTER CENTRES PLC,1830960,"82,298.47"
Home Office,UKBA - UK Borders Agency,20/10/2010,Management & Admin Serv.Corp & Bus Org Structure- PROG,UKBA - UK Borders Agency,DELOITTE MCS LIMITED,1831240,"65,546.20"
Home Office,UKBA - UK Borders Agency,20/10/2010,Asylum Services.Public Expense Removals,UKBA - UK Borders Agency,CARLSON WAGONLIT TRAVEL,1831250,"31,640.00"
Home Office,UKBA - UK Borders Agency,20/10/2010,Financial & Insurance Services.Audit Services,UKBA - UK Borders Agency,NATIONAL AUDIT OFFICE,1837096,"30,914.25"
Home Office,UKBA - UK Borders Agency,20/10/2010,Grant,UKBA - UK Borders Agency,LONDON BOROUGH OF BARNET 1 (G),553992,"46,271.43"
Home Office,UKBA - UK Borders Agency,20/10/2010,Grant,UKBA - UK Borders Agency,OXFORDSHIRE COUNTY COUNCIL 1 (G),553918,"86,528.57"
Home Office,UKBA - UK Borders Agency,20/10/2010,Grant,UKBA - UK Borders Agency,LONDON BOROUGH OF HOUNSLOW 1 (G),553918,"94,414.29"
Home Office,UKBA - UK Borders Agency,20/10/2010,Grant,UKBA - UK Borders Agency,BIRMINGHAM CITY COUNCIL (G),553918,"104,857.14"
Home Office,UKBA - UK Borders Agency,20/10/2010,Grant,UKBA - UK Borders Agency,SOLIHULL MBC,553992,"219,942.86"
Home Office,UKBA - UK Borders Agency,20/10/2010,Grant,UKBA - UK Borders Agency,KENT COUNTY COUNCIL 1 (G),550194,"153,000.00"
Home Office,UKBA - UK Borders Agency,20/10/2010,Grant,UKBA - UK Borders Agency,NATIONAL MUSEUMS LIVERPOOL (G),559072,"84,174.25"
Home Office,UKBA - UK Borders Agency,21/10/2010,Asylum Provision.Asylum serv Sect4Vouchers,UKBA - UK Borders Agency,SODEXHO PASS LTD,1829877,"221,595.64"
Home Office,UKBA - UK Borders Agency,21/10/2010,IT & Telecoms Components.Computer Equip (FA),UKBA - UK Borders Agency,SIEMENS BUSINESS SERVICES LTD,1798085,"59,678.33"
Home Office,UKBA - UK Borders Agency,21/10/2010,Asylum Provision.Asylum Cont Out Serv,UKBA - UK Borders Agency,NORTH OF ENGLAND REFUGEE SERVICES LTD,1829565,"28,628.00"
Home Office,UKBA - UK Borders Agency,21/10/2010,Office Equip and Consumables.Photocopiers & accessories,UKBA - UK Borders Agency,CANON (UK) LIMITED,1832359,"134,746.13"
Home Office,UKBA - UK Borders Agency,21/10/2010,"OGDs, Councils & Police Authorities",UKBA - UK Borders Agency,BIRMINGHAM CITY COUNCIL,1833071,"42,560.00"
Home Office,UKBA - UK Borders Agency,21/10/2010,"OGDs, Councils & Police Authorities",UKBA - UK Borders Agency,NEWHAM REGISTER OFFICE,1832073,"33,440.00"
Home Office,UKBA - UK Borders Agency,21/10/2010,"OGDs, Councils & Police Authorities",UKBA - UK Borders Agency,HERTFORDSHIRE COUNTY COUNCIL,1831987,"30,720.00"
Home Office,UKBA - UK Borders Agency,21/10/2010,"OGDs, Councils & Police Authorities",UKBA - UK Borders Agency,BARNET REGISTER OFFICE,1831912,"28,800.00"
Home Office,UKBA - UK Borders Agency,21/10/2010,"OGDs, Councils & Police Authorities",UKBA - UK Borders Agency,EALING REGISTER OFFICE,1831959,"27,920.00"
Home Office,UKBA - UK Borders Agency,21/10/2010,"OGDs, Councils & Police Authorities",UKBA - UK Borders Agency,WANDSWORTH REGISTER OFFICE,1832273,"26,800.00"
Home Office,UKBA - UK Borders Agency,21/10/2010,"OGDs, Councils & Police Authorities",UKBA - UK Borders Agency,MANCHESTER CITY COUNCIL,1832053,"26,560.00"
Home Office,UKBA - UK Borders Agency,21/10/2010,"OGDs, Councils & Police Authorities",UKBA - UK Borders Agency,HARROW REGISTER OFFICE,1831982,"25,680.00"
Home Office,UKBA - UK Borders Agency,21/10/2010,"OGDs, Councils & Police Authorities",UKBA - UK Borders Agency,LONDON BOROUGH OF SOUTHWARK,1832165,"25,600.00"
Home Office,UKBA - UK Borders Agency,21/10/2010,"Science, Technical & Research.Computer services - PROG",UKBA - UK Borders Agency,SPECIALIST COMPUTER CENTRES PLC,1806834,"25,027.52"
Home Office,UKBA - UK Borders Agency,21/10/2010,"Science, Technical & Research.Computer services - PROG",UKBA - UK Borders Agency,SPECIALIST COMPUTER CENTRES PLC,1824194,"25,027.52"
Home Office,UKBA - UK Borders Agency,21/10/2010,Asylum Services.Public Expense Removals,UKBA - UK Borders Agency,CARLSON WAGONLIT TRAVEL,1832226,"169,152.39"
Home Office,UKBA - UK Borders Agency,21/10/2010,OGD RFT,UKBA - UK Borders Agency,TREASURY SOLICITOR CLIENT MONIES,1836900,"334,570.62"
Home Office,UKBA - UK Borders Agency,21/10/2010,OGD RFT,UKBA - UK Borders Agency,TREASURY SOLICITOR CLIENT MONIES,1840627,"82,856.70"
Home Office,UKBA - UK Borders Agency,22/10/2010,Politics & Civic Affairs.Human aid & relief Sect 4,UKBA - UK Borders Agency,CLEARSPRINGS MANAGEMENT LTD,1833246,"901,595.94"
Home Office,UKBA - UK Borders Agency,22/10/2010,Politics & Civic Affairs.Human aid & relief Sect 4,UKBA - UK Borders Agency,PRIORITY PROPERTIES NORTH WEST,1833435,"480,121.20"
Home Office,UKBA - UK Borders Agency,22/10/2010,Politics & Civic Affairs.Human aid & relief Sect 4,UKBA - UK Borders Agency,CLEARSPRINGS MANAGEMENT LTD,1833229,"478,271.75"
Home Office,UKBA - UK Borders Agency,22/10/2010,Politics & Civic Affairs.Human aid & relief Sect 4,UKBA - UK Borders Agency,CLEARSPRINGS MANAGEMENT LTD,1833237,"426,621.58"
Home Office,UKBA - UK Borders Agency,22/10/2010,Politics & Civic Affairs.Human aid & relief Sect 4,UKBA - UK Borders Agency,JOMAST PROPERTY AND FINANCE CO LTD,1834456,"337,481.95"
Home Office,UKBA - UK Borders Agency,22/10/2010,Politics & Civic Affairs.Human aid & relief Sect 4,UKBA - UK Borders Agency,PRIORITY PROPERTIES NORTH WEST,1833423,"325,112.94"
Home Office,UKBA - UK Borders Agency,22/10/2010,Politics & Civic Affairs.Human aid & relief Sect 4,UKBA - UK Borders Agency,CLEARSPRINGS MANAGEMENT LTD,1833240,"214,297.29"
Home Office,UKBA - UK Borders Agency,22/10/2010,Politics & Civic Affairs.Human aid & relief Sect 4,UKBA - UK Borders Agency,PRIORITY PROPERTIES NORTH WEST,1833440,"205,404.26"
Home Office,UKBA - UK Borders Agency,22/10/2010,Politics & Civic Affairs.Human aid & relief Sect 4,UKBA - UK Borders Agency,CLEARSPRINGS MANAGEMENT LTD,1833250,"164,318.20"
Home Office,UKBA - UK Borders Agency,22/10/2010,Politics & Civic Affairs.Human aid & relief Sect 4,UKBA - UK Borders Agency,PRIORITY PROPERTIES NORTH WEST,1833428,"154,217.54"
Home Office,UKBA - UK Borders Agency,22/10/2010,Storage & Mail Services.Messenger & Reception Services,UKBA - UK Borders Agency,LONDON BOROUGH OF HOUNSLOW,1808608,"33,837.67"
Home Office,UKBA - UK Borders Agency,22/10/2010,"Public Order, Security, Safety.Domestic Escort Services",UKBA - UK Borders Agency,G4S CARE & JUSTICE SERVICES (UK) LTD,1816239,"1,537,876.84"
Home Office,UKBA - UK Borders Agency,22/10/2010,"Public Order, Security, Safety.Domestic Escort Services",UKBA - UK Borders Agency,G4S CARE & JUSTICE SERVICES (UK) LTD,1816236,"1,489,756.40"
Home Office,UKBA - UK Borders Agency,22/10/2010,"Public Order, Security, Safety.Escorting services",UKBA - UK Borders Agency,G4S CARE & JUSTICE SERVICES (UK) LTD,1816164,"71,720.60"
Home Office,UKBA - UK Borders Agency,22/10/2010,"Public Order, Security, Safety.Escorting services",UKBA - UK Borders Agency,G4S CARE & JUSTICE SERVICES (UK) LTD,1816230,"53,265.43"
Home Office,UKBA - UK Borders Agency,22/10/2010,"Public Order, Security, Safety.Escorting services",UKBA - UK Borders Agency,G4S CARE & JUSTICE SERVICES (UK) LTD,1816168,"25,788.14"
Home Office,UKBA - UK Borders Agency,22/10/2010,"Law Enforcement & safety Equip.Haulage, Storage & Disp (HSD)",UKBA - UK Borders Agency,ASSOCIATED BRITISH PORTS,1834547,"438,783.78"
Home Office,UKBA - UK Borders Agency,22/10/2010,Asylum Services.Public Expense Removals,UKBA - UK Borders Agency,CARLSON WAGONLIT TRAVEL,1833754,"192,250.00"
Home Office,UKBA - UK Borders Agency,22/10/2010,Asylum Services.Public Expense Removals,UKBA - UK Borders Agency,CARLSON WAGONLIT TRAVEL,1833767,"57,175.00"
Home Office,UKBA - UK Borders Agency,22/10/2010,Asylum Services.Public Expense Removals,UKBA - UK Borders Agency,CARLSON WAGONLIT TRAVEL,1833143,"51,840.62"
Home Office,UKBA - UK Borders Agency,22/10/2010,OGD RFT,UKBA - UK Borders Agency,DEPARTMENT FOR WORK AND PENSIONS ACCOUNTING SHARED SERVICES,1840485,"67,737.00"
Home Office,UKBA - UK Borders Agency,22/10/2010,OGD RFT,UKBA - UK Borders Agency,DEPARTMENT FOR WORK AND PENSIONS ACCOUNTING SHARED SERVICES,1840494,"68,078.00"
Home Office,UKBA - UK Borders Agency,22/10/2010,Grant,UKBA - UK Borders Agency,WILTSHIRE COUNTY COUNCIL 1 (G),549672,"26,931.87"
Home Office,UKBA - UK Borders Agency,22/10/2010,Grant,UKBA - UK Borders Agency,LONDON BOROUGH OF WANDSWORTH (G),549672,"50,214.51"
Home Office,UKBA - UK Borders Agency,22/10/2010,Grant,UKBA - UK Borders Agency,HALTON BOROUGH COUNCIL (G),549672,"57,067.47"
Home Office,UKBA - UK Borders Agency,22/10/2010,Grant,UKBA - UK Borders Agency,LEICESTER CITY COUNCIL 1 (G),549672,"78,344.43"
Home Office,UKBA - UK Borders Agency,22/10/2010,Grant,UKBA - UK Borders Agency,NOTTINGHAMSHIRE COUNTY COUNCIL 2 (,549672,"78,738.15"
Home Office,UKBA - UK Borders Agency,22/10/2010,Grant,UKBA - UK Borders Agency,GLOUCESTERSHIRE COUNTY COUNCIL 1 (,549672,"483,804.03"
Home Office,UKBA - UK Borders Agency,25/10/2010,Asylum Provision.Asylum Cont Out Serv,UKBA - UK Borders Agency,SCOTTISH REFUGEE COUNCIL ( SCOTLAND ),1834745,"27,666.00"
Home Office,UKBA - UK Borders Agency,25/10/2010,"Public Order, Security, Safety.Escorting services",UKBA - UK Borders Agency,G4S CARE & JUSTICE SERVICES (UK) LTD,1818096,"611,297.11"
Home Office,UKBA - UK Borders Agency,25/10/2010,"Public Order, Security Service.Detention Services Contracts",UKBA - UK Borders Agency,G4S CARE & JUSTICE SERVICES (UK) LTD,1793382,"110,703.84"
Home Office,UKBA - UK Borders Agency,25/10/2010,"Public Order, Security, Safety.Domestic Escort Services",UKBA - UK Borders Agency,G4S CARE & JUSTICE SERVICES (UK) LTD,1818827,"64,444.44"
Home Office,UKBA - UK Borders Agency,25/10/2010,"Public Order, Security, Safety.Domestic Escort Services",UKBA - UK Borders Agency,G4S CARE & JUSTICE SERVICES (UK) LTD,1818092,"34,777.61"
Home Office,UKBA - UK Borders Agency,26/10/2010,Politics & Civic Affairs.Displaced pers.assistance,UKBA - UK Borders Agency,SODEXHO PASS LTD,1836597,"981,048.41"
Home Office,UKBA - UK Borders Agency,26/10/2010,Politics & Civic Affairs.Human aid & relief Sect 4,UKBA - UK Borders Agency,UNITED PROPERTY MANAGEMENT,1836593,"653,275.68"
Home Office,UKBA - UK Borders Agency,26/10/2010,Politics & Civic Affairs.Human aid & relief Sect 4,UKBA - UK Borders Agency,UNITED PROPERTY MANAGEMENT,1836590,"600,789.44"
Home Office,UKBA - UK Borders Agency,26/10/2010,Politics & Civic Affairs.Human aid & relief Sect 4,UKBA - UK Borders Agency,HAPPY HOMES UK LTD,1833203,"479,161.13"
Home Office,UKBA - UK Borders Agency,26/10/2010,Politics & Civic Affairs.Human aid & relief Sect 4,UKBA - UK Borders Agency,ANGEL GROUP,1835858,"448,043.16"
Home Office,UKBA - UK Borders Agency,26/10/2010,Politics & Civic Affairs.Human aid & relief Sect 4,UKBA - UK Borders Agency,UNITED PROPERTY MANAGEMENT,1836592,"319,784.23"
Home Office,UKBA - UK Borders Agency,26/10/2010,Asylum Provision.Asylum serv Sect4Vouchers,UKBA - UK Borders Agency,SODEXHO PASS LTD,1836116,"210,833.63"
Home Office,UKBA - UK Borders Agency,26/10/2010,Politics & Civic Affairs.Refugee repatriation.serv,UKBA - UK Borders Agency,G4S JUSTICE SERVICES LTD - AIM,1819795,"206,784.62"
Home Office,UKBA - UK Borders Agency,26/10/2010,Politics & Civic Affairs.Human aid & relief Sect 4,UKBA - UK Borders Agency,ANGEL GROUP,1835860,"154,857.16"
Home Office,UKBA - UK Borders Agency,26/10/2010,Politics & Civic Affairs.Human aid & relief Sect 4,UKBA - UK Borders Agency,ANGEL GROUP,1835863,"122,124.46"
Home Office,UKBA - UK Borders Agency,26/10/2010,"Public Order, Security Service.Detention Services Contracts",UKBA - UK Borders Agency,SERCO  LTD,1822184,"2,143,947.19"
Home Office,UKBA - UK Borders Agency,26/10/2010,"Public Order, Security Service.Detention Services Contracts",UKBA - UK Borders Agency,G4S CARE & JUSTICE SERVICES (UK) LTD,1821357,"1,242,825.00"
Home Office,UKBA - UK Borders Agency,26/10/2010,"Public Order, Security Service.Detention Services Contracts",UKBA - UK Borders Agency,G4S CARE & JUSTICE SERVICES (UK) LTD,1821995,"1,004,263.20"
Home Office,UKBA - UK Borders Agency,26/10/2010,"Public Order, Security Service.Detention Services Contracts",UKBA - UK Borders Agency,SERCO  LTD,1822168,"897,746.31"
Home Office,UKBA - UK Borders Agency,26/10/2010,"Public Order, Security Service.Detention Services Contracts",UKBA - UK Borders Agency,G4S CARE & JUSTICE SERVICES (UK) LTD,1820811,"516,090.19"
Home Office,UKBA - UK Borders Agency,26/10/2010,"Public Order, Security Service.Detention Services Contracts",UKBA - UK Borders Agency,SERCO  LTD,1822166,"159,131.00"
Home Office,UKBA - UK Borders Agency,26/10/2010,"Public Order, Security, Safety.Domestic Escort Services",UKBA - UK Borders Agency,G4S CARE & JUSTICE SERVICES (UK) LTD,1819792,"75,680.20"
Home Office,UKBA - UK Borders Agency,26/10/2010,"Vehicles, Ships, Airplanes.Vehicle Maint Equip (FA)- PROG",UKBA - UK Borders Agency,FR AVIATION LTD,1836668,"317,976.74"
Home Office,UKBA - UK Borders Agency,26/10/2010,"Transport, Storage & Mail Serv.Vehicle Hire Rent & Lease-PROG",UKBA - UK Borders Agency,TNT UK LIMITED,1836589,"276,652.86"
Home Office,UKBA - UK Borders Agency,26/10/2010,Storage & Mail Services.Messenger & Reception Services,UKBA - UK Borders Agency,TNT UK LIMITED,1835886,"28,595.51"
Home Office,UKBA - UK Borders Agency,26/10/2010,"Science, Technical & Research.Computer services - PROG",UKBA - UK Borders Agency,FUJITSU SERVICES (ALCEDO) LTD,1819188,"60,427.99"
Home Office,UKBA - UK Borders Agency,26/10/2010,"Science, Technical & Research.Computer services - PROG",UKBA - UK Borders Agency,ATOS ORIGIN IT SERVICES UK LIMITED- MEDICAL SERVICES,1836644,"36,091.30"
Home Office,UKBA - UK Borders Agency,26/10/2010,"Transport, Storage & Mail Serv.Fuel & Vehicle Supp Serv- PROG",UKBA - UK Borders Agency,ARVAL UK LTD,1817375,"30,400.12"
Home Office,UKBA - UK Borders Agency,26/10/2010,"Transport, Storage & Mail Serv.Fuel & Vehicle Supp Serv- PROG",UKBA - UK Borders Agency,ARVAL UK LTD,1827614,"29,402.88"
Home Office,UKBA - UK Borders Agency,26/10/2010,"Science, Technical & Research.Computer services - PROG",UKBA - UK Borders Agency,ATOS ORIGIN IT SERVICES UK LIMITED- MEDICAL SERVICES,1836648,"25,807.70"
Home Office,UKBA - UK Borders Agency,26/10/2010,"Transport, Storage & Mail Serv.Fuel & Vehicle Supp Serv- PROG",UKBA - UK Borders Agency,ARVAL UK LTD,1808819,"25,785.96"
Home Office,UKBA - UK Borders Agency,26/10/2010,Storage & Mail Services.Messenger & Reception Services,UKBA - UK Borders Agency,CSC COMPUTER SCIENCES CORPORATION,1827613,"2,074,643.24"
Home Office,UKBA - UK Borders Agency,26/10/2010,"IT, Broadcasting & Telecomms.IT Running Cost - Maint - PROG",UKBA - UK Borders Agency,FUJITSU SERVICES LTD,1819168,"33,307.17"
Home Office,UKBA - UK Borders Agency,26/10/2010,"IT, Broadcasting & Telecomms.IT Running Cost - Maint - PROG",UKBA - UK Borders Agency,FCO SERVICES,1841659,"51,153.94"
Home Office,UKBA - UK Borders Agency,27/10/2010,Politics & Civic Affairs.REFUGEE PROG. SECT 95,UKBA - UK Borders Agency,MANCHESTER CITY COUNCIL,1836678,"593,362.62"
Home Office,UKBA - UK Borders Agency,27/10/2010,Catering Equip & Products (FA).Catering Fixed Assets,UKBA - UK Borders Agency,CA BLACKWELL LTD,1834475,"314,180.95"
Home Office,UKBA - UK Borders Agency,27/10/2010,Catering Equip & Products (FA).Catering Fixed Assets,UKBA - UK Borders Agency,CA BLACKWELL LTD,1834896,"190,990.49"
Home Office,UKBA - UK Borders Agency,27/10/2010,Management & Admin Serv.Overseas Posting Costs-PROG,UKBA - UK Borders Agency,CROWN RELOCATIONS,1836739,"116,001.60"
Home Office,UKBA - UK Borders Agency,27/10/2010,Management & Admin Serv.Overseas Posting Costs-PROG,UKBA - UK Borders Agency,PARIS APARTMENT SERVICES,1836037,"63,305.00"
Home Office,UKBA - UK Borders Agency,27/10/2010,Law Enforcement & safety Equip.Security & Control Equip- PROG,UKBA - UK Borders Agency,AMERICAN SCIENCE & ENGINEERING INC,1836725,"44,425.58"
Home Office,UKBA - UK Borders Agency,27/10/2010,IT & Telecommunications.IT & Telecommunications - PROG,UKBA - UK Borders Agency,FCO SERVICES,1841657,"83,425.00"
Home Office,UKBA - UK Borders Agency,27/10/2010,Grant,UKBA - UK Borders Agency,NORTH YORKSHIRE COUNTY COUNCIL (G),562510,"30,063.18"
Home Office,UKBA - UK Borders Agency,27/10/2010,Grant,UKBA - UK Borders Agency,GATESHEAD METROPOLITAN BC (G),562510,"44,331.75"
Home Office,UKBA - UK Borders Agency,27/10/2010,Grant,UKBA - UK Borders Agency,DONCASTER MBC 1 (G),562510,"46,570.68"
Home Office,UKBA - UK Borders Agency,27/10/2010,Grant,UKBA - UK Borders Agency,BRISTOL CITY COUNCIL 1 (G),562510,"55,341.63"
Home Office,UKBA - UK Borders Agency,27/10/2010,Grant,UKBA - UK Borders Agency,KINGSTON UPON HULL CITY COUNCIL 2,562510,"77,035.74"
Home Office,UKBA - UK Borders Agency,27/10/2010,Grant,UKBA - UK Borders Agency,LONDON BOROUGH OF HARROW 1 (G),562510,"143,181.48"
Home Office,UKBA - UK Borders Agency,27/10/2010,Grant,UKBA - UK Borders Agency,CAMBRIDGESHIRE COUNTY COUNCIL (G),562510,"222,269.94"
Home Office,UKBA - UK Borders Agency,27/10/2010,Grant,UKBA - UK Borders Agency,KENT COUNTY COUNCIL 1 (G),562510,"3,210,021.36"
Home Office,UKBA - UK Borders Agency,27/10/2010,Grant,UKBA - UK Borders Agency,SOUTH WEST REGIONAL CONSORTIUM (G),6026461,"25,700.00"
Home Office,UKBA - UK Borders Agency,27/10/2010,Grant,UKBA - UK Borders Agency,NEWPORT COUNTY BOROUGH COUNCIL 1 (,6028661,"30,372.00"
Home Office,UKBA - UK Borders Agency,27/10/2010,Grant,UKBA - UK Borders Agency,SOUTH AYRSHIRE (G),562510,"48,460.23"
Home Office,UKBA - UK Borders Agency,28/10/2010,Politics & Civic Affairs.Human aid & relief Sect 4,UKBA - UK Borders Agency,NEWCASTLE CITY COUNCIL,1838455,"563,552.60"
Home Office,UKBA - UK Borders Agency,28/10/2010,Politics & Civic Affairs.Human aid & relief Sect 4,UKBA - UK Borders Agency,LIVERPOOL CITY COUNCIL,1838478,"249,738.54"
Home Office,UKBA - UK Borders Agency,28/10/2010,Storage & Mail Services.Messenger & Reception Services,UKBA - UK Borders Agency,BRADFORD METROPOLITAN DISTRICT,1837769,"28,783.23"
Home Office,UKBA - UK Borders Agency,28/10/2010,IT & Telecommunications.IT & Telecommunications - PROG,UKBA - UK Borders Agency,SPECIALIST COMPUTER CENTRES PLC,1837760,"102,496.43"
Home Office,UKBA - UK Borders Agency,28/10/2010,Animal Material & Supplies.Detect Dogs-Kennel & Misc-PROG,UKBA - UK Borders Agency,WAGTAIL,1837743,"86,181.73"
Home Office,UKBA - UK Borders Agency,28/10/2010,Public Order.Voluntary Assisted Return,UKBA - UK Borders Agency,CITIBANK INTERNATIONAL PLC,1838076,"125,000.00"
Home Office,UKBA - UK Borders Agency,28/10/2010,IT & Telecommunications.IT & Telecommunications - PROG,UKBA - UK Borders Agency,FCO SERVICES,1841641,"114,054.07"
Home Office,UKBA - UK Borders Agency,28/10/2010,Grant,UKBA - UK Borders Agency,LONDON BOROUGH OF EALING 1 (G),561398,"41,771.43"
Home Office,UKBA - UK Borders Agency,28/10/2010,Grant,UKBA - UK Borders Agency,SURREY COUNTY COUNCIL 1 (G),565270,"66,614.29"
Home Office,UKBA - UK Borders Agency,28/10/2010,Grant,UKBA - UK Borders Agency,LONDON BOROUGH OF SOUTHWARK 1 (G),566298,"123,757.14"
Home Office,UKBA - UK Borders Agency,28/10/2010,Grant,UKBA - UK Borders Agency,LONDON BOROUGH OF CROYDON 1 (G),565270,"963,685.71"
Home Office,UKBA - UK Borders Agency,28/10/2010,Grant,UKBA - UK Borders Agency,LONDON BOROUGH OF CROYDON 1 (G),566306,"1,309,142.86"
Home Office,UKBA - UK Borders Agency,28/10/2010,Grant,UKBA - UK Borders Agency,MIDDLESBROUGH BOROUGH COUNCIL 1 (G,566302,"29,748.30"
Home Office,UKBA - UK Borders Agency,28/10/2010,Grant,UKBA - UK Borders Agency,WESTMINSTER CITY COUNCIL (G),566302,"31,358.25"
Home Office,UKBA - UK Borders Agency,28/10/2010,Grant,UKBA - UK Borders Agency,LONDON BOROUGH TOWER HAMLETS (G),566302,"38,670.68"
Home Office,UKBA - UK Borders Agency,28/10/2010,Grant,UKBA - UK Borders Agency,SOUTH GLOUCESTERSHIRE COUNCIL 1 (G,566302,"46,395.99"
Home Office,UKBA - UK Borders Agency,28/10/2010,Grant,UKBA - UK Borders Agency,LONDON BOROUGH OF HARROW 1 (G),566302,"51,452.40"
Home Office,UKBA - UK Borders Agency,28/10/2010,Grant,UKBA - UK Borders Agency,LONDON BOROUGH OF LAMBETH 1 (G),566302,"92,000.97"
Home Office,UKBA - UK Borders Agency,28/10/2010,Grant,UKBA - UK Borders Agency,SOUTHAMPTON CITY COUNCIL 1 (G),566302,"242,823.87"
Home Office,UKBA - UK Borders Agency,28/10/2010,Grant,UKBA - UK Borders Agency,REFUGEE COUNCIL 1 (G),566290,"200,000.00"
Home Office,UKBA - UK Borders Agency,29/10/2010,Politics & Civic Affairs.Human aid & relief Sect 4,UKBA - UK Borders Agency,LEEDS CITY COUNCIL,1838585,"776,790.28"
Home Office,UKBA - UK Borders Agency,29/10/2010,Politics & Civic Affairs.Human aid & relief Sect 4,UKBA - UK Borders Agency,METROPOLITAN SUPPORT TRUST (EAST MIDLANDS),1838667,"312,793.80"
Home Office,UKBA - UK Borders Agency,29/10/2010,Storage & Mail Services.Messenger & Reception Services,UKBA - UK Borders Agency,SIEMENS BUSINESS SERVICES LTD,1820812,"207,848.64"
Home Office,UKBA - UK Borders Agency,29/10/2010,Asylum Provision.Asylum Cont Out Serv,UKBA - UK Borders Agency,WELSH REFUGEE COUNCIL,1834754,"38,442.00"
Home Office,UKBA - UK Borders Agency,29/10/2010,"Public Order, Security Service.Detention Services Contracts",UKBA - UK Borders Agency,G4S CARE & JUSTICE SERVICES (UK) LTD,1821183,"464,849.98"
Home Office,UKBA - UK Borders Agency,29/10/2010,"Public Order, Security, Safety.Escorting services",UKBA - UK Borders Agency,G4S CARE & JUSTICE SERVICES (UK) LTD,1820186,"69,872.63"
Home Office,UKBA - UK Borders Agency,29/10/2010,"Public Order, Security Service.Detention Services Contracts",UKBA - UK Borders Agency,THE GEO GROUP UK LTD,1839155,"61,809.62"
Home Office,UKBA - UK Borders Agency,29/10/2010,"Public Order, Security, Safety.Escorting services",UKBA - UK Borders Agency,G4S CARE & JUSTICE SERVICES (UK) LTD,1820176,"39,393.03"
Home Office,UKBA - UK Borders Agency,29/10/2010,"Building, Construction Service.Build a new structure (FA)",UKBA - UK Borders Agency,G4S CARE & JUSTICE SERVICES (UK) LTD,1821386,"28,152.46"
Home Office,UKBA - UK Borders Agency,29/10/2010,Law Enforcement & safety Equip.Security & Control Equip- PROG,UKBA - UK Borders Agency,SAIC LIMITED,1834339,"34,547.35"
Home Office,UKBA - UK Borders Agency,29/10/2010,"Law Enforcement & safety Equip.Haulage, Storage & Disp (HSD)",UKBA - UK Borders Agency,G4S CASH SERVICES (UK) LIMITED,1838557,"27,503.78"
Home Office,UKBA - UK Borders Agency,29/10/2010,"Transport, Storage & Mail Serv.Parking fees - PROG",UKBA - UK Borders Agency,GATWICK AIRPORT LTD,1837746,"26,855.20"
Home Office,UKBA - UK Borders Agency,29/10/2010,Generators & Equip (FA).Plant & machinery (FA),UKBA - UK Borders Agency,ARQIVA LTD,1818360,"60,598.91"
Home Office,UKBA - UK Borders Agency,29/10/2010,Asylum Services.Public Expense Removals,UKBA - UK Borders Agency,CARLSON WAGONLIT TRAVEL,1838487,"119,282.53"
Home Office,UKBA - UK Borders Agency,29/10/2010,"Transport, Storage & Mail Serv.Mailing Mail Del Serv - PROG",UKBA - UK Borders Agency,FCO SERVICES,1842950,"57,293.03"
